Workbook

Sheet Output (hidden)
Q10: v2024
B12: You’ve worked your whole life to build your wealth and would like your loved ones to continue enjoying the fruits of your hard work. However, there are taxes and expenses that must be paid in cash before your assets are transferred to your beneficiaries. Those taxes and expenses may be higher than you think and may significantly reduce the size of your estate available to your beneficiaries. Further, if your estate does not have enough liquid assets to pay off those expenses some of the other assets may have to be quickly sold for example: your home, cottage or vehicles.
B13: The following chart is an estimation of what could happen to your estate and the cash shortfall you will leave behind.
B16: Taxes and final expenses may shrink the estate you intend to leave behind for your beneficiary.
D17: You intend to leave this for your beneficiary:
D18: ='Raw Data'!D22 -> $2.4 M | K18: Expected reduction in estate due to liabilities, expenses and taxes:
K20: =ROUND(D18,1)-ROUND(D23,1) -> $0.8 M
D22: This is what your beneficiary will likely receive: | K22: Consider including this amount in determining your total permanent life insurance need.
D23: ='Raw Data'!D19 -> $1.6 M
B28: A death benefit from an RBC life insurance policy may be used to pay tax liabilities and other expenses, and avoid reduction in the estate available to the beneficiaries.
B30: ="Reach out and speak to "&IF(Eng_Adv_Use_In_Printouts="Yes",TRIM(Eng_Prepared_By),"your RBC advisor")&" today!" -> Reach out and speak to your RBC advisor today!

Sheet Input (hidden)
C8: Prepared by: | H8: Smith Advisors
C9: Include in printouts: | L9: No
W11: ESTATE TRANSFER ESTIMATE v2024
C16: About this calculator
C18: The purpose of this calculator is to estimate the income tax and estate administration tax/probate fees that may become payable upon your death based on the assets you may own at that time and show its impact on your estate. The calculation assumes that you are either a single person or a last to die spouse/common law-partner.
C19: An RBC Permanent Life Insurance policy may provide an excellent solution to maximize your estate’s liquidity.
C25: Client information
D28: Client name | I28: John Smith | AB28: Client age | AG28: 68 | AJ28: Comparison age | AQ28: 85 | AT28: Province of residence | BD28: AB | BG28: Marginal tax rate | BO28: 50.00%
C35: Asset information
D38: Asset type | Z38: Benificiary designation | AG38: ACB / cost | AM38: Annual contribution | AS38: Current FMV | AY38: Growth rate | BD38: Future value | BJ38: Taxable income/gain | BP38: Estate
D40: Cash | BJ40: 0 | BP40: =BD40 -> 0
D42: RRSP | AB42: No | AM42: 5,000 | AS42: 500,000 | AY42: 4.00% | BD42: =IF($AQ$28>71,0,FV(AY42,$AQ$28-$AG$28,-AM42,-AS42,1)) -> 0 | BJ42: =+IF(AQ28>71,0,BD42) -> 0 | BP42: =IF(AB42=List!$A$20,0,BD42) -> 0
D44: RRIF | AB44: No | BD44: =IF($AQ$28<72,0,VLOOKUP($AQ$28,RRIF!$A$4:$F$43,6)) -> 209,026 | BJ44: =+BD44 -> 209,026 | BP44: =IF(AB44=List!$A$20,0,BD44) -> 209,026
D46: TFSA | AB46: No | BD46: =FV(AY46,+$AQ$28-$AG$28,-AM46,-AS46,1) -> 0 | BJ46: 0 | BP46: =IF(AB46=List!$A$20,0,BD46) -> 0
D48: Non-registered investments (growth/capital gains focused) | AB48: No | BD48: =FV(AY48,+$AQ$28-$AG$28,-AM48,-AS48,1) -> 0 | BJ48: =+(BD48-AG48-(AM48*($AQ$28-$AG$28)))*List!$B$1 -> 0 | BP48: =IF(AB48=List!$A$20,0,BD48) -> 0
D50: Non-registered investments (segregated fund, if applicable) | AB50: No | BD50: =FV(AY50,+$AQ$28-$AG$28,-AM50,-AS50,1) -> 0 | BJ50: =+(BD50-AG50-(AM50*($AQ$28-$AG$28)))*List!$B$1 -> 0 | BP50: =IF(AB50=List!$A$20,0,BD50) -> 0
D52: Non-registered investments (other) | AB52: No | BD52: =FV(AY52*(1-$BO$28),+$AQ$28-$AG$28,-AM52,-AS52,1) -> 0 | BJ52: 0 | BP52: =IF(AB52=List!$A$20,0,BD52) -> 0
D54: Land | BD54: =FV(AY54,+$AQ$28-$AG$28,,-AS54,1) -> 0 | BJ54: =+(BD54-AG54)*List!$B$1 -> 0 | BP54: =+BD54 -> 0
D56: Principal residence | BD56: =FV(AY56,+$AQ$28-$AG$28,,-AS56,1) -> 0 | BJ56: =+MAX(0,(BD56-AG56)*List!$B$1) -> 0 | BP56: =+BD56 -> 0
D58: Other real estate (business/rental assets can not have capital losses) | BD58: =FV(AY58,+$AQ$28-$AG$28,,-AS58,1) -> 0 | BJ58: =+MAX(0,(BD58-AG58)*List!$B$1) -> 0 | BP58: =+BD58 -> 0
D60: Business shares (common / growth stock) | AB60: No | AS60: 1,000,000 | BD60: =FV(AY60,+$AQ$28-$AG$28,,-AS60,1) -> 1,000,000 | BJ60: =+(BD60-AG60)*List!$B$1 -> 500,000 | BP60: =IF(AB60=List!$A$20,0,BD60) -> 1,000,000
D62: Business shares (fixed value / estate-freeze stock) | AB62: No | AS62: 1,000,000 | BD62: =AS62 -> 1,000,000 | BJ62: =+(BD62-AG62)*List!$B$1 -> 500,000 | BP62: =IF(AB62=List!$A$20,0,BD62) -> 1,000,000
D64: Other assets generating capital gains (e.g. gold coins, painting etc.) | BD64: =FV(AY64,+$AQ$28-$AG$28,,-AS64,1) -> 0 | BJ64: =+(BD64-AG64)*List!$B$1 -> 0 | BP64: =+BD64 -> 0
D66: Estimated depreciation recapture on personally owned buisness assets | BP66: 0
D68: Estimated terminal loss on personally owned buisness/rental assets | BP68: 0
D70: Other easily cashable assets | BD70: =FV(AY70,+$AQ$28-$AG$28,-AM70,-AS70,1) -> 0 | BJ70: =+(BD70-AG70-(AM70*($AQ$28-$AG$28)))*List!$B$1 -> 0 | BP70: =BD70 -> 0
D72: Other non-cashable assets | BD72: =FV(AY72,+$AQ$28-$AG$28,-AM72,-AS72,1) -> 0 | BJ72: =+(BD72-AG72-(AM72*($AQ$28-$AG$28)))*List!$B$1 -> 0 | BP72: =BD72 -> 0
D74: Guaranteed portion of annuity | BP74: =BD74 -> 0
D76: Inforce Life insurance coverage (Death benefit - only if the estate is the beneficiary) | BD76: 200,000 | BJ76: 0 | BP76: =BD76 -> 200,000
BD79: Total | BJ79: =SUM(BJ40:BJ76) -> 1,209,026 | BP79: =SUM(BP40:BP76) -> 2,409,026
C86: Deductions
BJ89: Taxable income/gain | BP89: Estate
D91: Mortgage/borrowing on real property included in estate above | BJ91: 0
D93: Principal residence exemption (%) | AG93: 100.00% | BJ93: =+BJ56*AG93 -> 0
D95: Lifetime capital gains deduction (1/2 of exemption amount) | AG95: =+VLOOKUP($AQ$28,LTCGE!$B$2:$D$101,3) -> 840,337
D96: Maximum indexed to inflation amount of LTCGD at comparison age
D98: Other
BD101: Total | BJ101: =SUM(BJ93:BJ98) -> 0 | BP101: =BP91 -> 0
C108: Liquidity Summary
D111: Liquid assets | K111: =BD40+BD42+BD44+BD46+BD48+BD50+BD52+BD70 -> 209,026 | R111: Death benefit to estate | AC111: =BD76 -> 200,000 | AJ111: Total cash required | AT111: =U140 -> 821,850 | BE111: Surplus / (Shortfall) | BO111: =K111-AT111+AC111 -> (412,824)
C118: Liabilities and expenses
P121: As a % of estate | U121: Amount
D123: Mortgage | U123: =BP91 -> 0
D125: Other debt and liabilities at death
D127: Legal fees | P127: 2.00% | U127: =+P127*($BP$79-$BP$101) -> 48,181
D129: Accounting fees | P129: 2.00% | U129: =+P129*($BP$79-$BP$101) -> 48,181
D131: Trustee / executor fees | P131: 5.00% | U131: =+P131*($BP$79-$BP$101) -> 120,451
D133: Other final expenses
D135: Income tax payable | U135: =+(BJ79-BJ101)*$BO$28 -> 604,513
D137: Probate tax payable | U137: =+VLOOKUP(BD28,List!$A$5:$D$17,4) -> 525
D140: Expected shrinkage in estate due to liabilities, expenses and taxes | U140: =SUM(U123:U137) -> 821,850
C144: ="Potential life insurance need to preserve your estate from shrinkage is "&TEXT(U140,"$#00,000")&". Contact "&IF(Eng_Adv_Use_In_Printouts="Yes",TRIM(Eng_Prepared_By),"your RBC life insurance agent")&" to find the right insurance solution for you." -> Potential life insurance need to preserve your estate from shrinkage is $821,850. Contact your RBC life insurance agent to find the right insurance solution for you.

Sheet Considerations (hidden)
C16: General considerations
C19: 1 | D19: RBC Life Insurance Company recommends consulting with your legal, accounting, tax and financial advisors before making any decision. The information provided in this presentation is not intended to be relied upon as tax, legal, accounting or financial advice.
C20: 2 | D20: RBC Life Insurance Company does not accept any liability for any direct, indirect or consequential loss arising from, or in connection with, the information in this presentation.
C21: 3 | D21: Reasonable care has been taken to ensure the accuracy of the calculations and information provided, but errors and omissions are possible.
C22: 4 | D22: If an insurance policy is issued, the coverage will be governed by the terms of the policy. This presentation will not form part of any policy issued.
C23: 5 | D23: Buying a life insurance policy is a long-term commitment. Surrendering the policy can have significant tax and financial consequences.
C24: 6 | D24: This is not an insurance illustration.
C25: 7 | D25: To ensure you always provide your clients with accurate numbers, it is important that you use the latest version of the RBC Estate Transfer Estimate tool.
C32: Calculation considerations/assumptions
C35: 1 | D35: The income tax liability is calculated by multiplying the taxable income/gain by the marginal tax rate. Unless identified, any other credits/deductions that the client may be entitled to have not been considered in this calculation.
C36: =1+C35 -> 2 | D36: ="The annual inflation rate used is "&TEXT(LTCGE!$G$1,"0.0%")&"." -> The annual inflation rate used is 3.0%.
C37: 3 | D37: The maximum lifetime capital gains exemption in the comparison year is an estimated amount. The actual limit applicable in the year of death can be different than shown in this presentation.
C38: 4 | D38: It is assumed that no capital or non-capital loss carryforwards will be available to reduce taxable gains or income in the year of death.
C39: 5 | D39: Any tax liability in foreign countries and potential tax credits for those tax liabilities is not considered in the calculation.
C40: 6 | D40: Capital gains/losses are calculated based on the adjusted cost base and projected fair market value of the assets. Special rules that apply in respect of personal-use property and listed personal property are not considered in this calculation.
C41: 7 | D41: The future value of RRIF is calculated assuming that the minimum amount required under the Income Tax Act (Canada) will be withdrawn from age 71.
C42: 8 | D42: When a beneficiary has been designated, it is assumed that the value of that asset will not be included in the estate tax calculation.
C43: 9 | D43: It is assumed that no withdrawals will be made from the assets and they will continue to grow at a specified growth rate on an annual basis. However, it is possible that the asset value may decline even if no withdrawal is made.
C44: 10 | D44: The calculator only calculates the income/gain that may result from various assets held at death. It does not consider other income earned during the year of death or any of the previous years.
C45: 11 | D45: The potential estate tax liability is a simplified estimate only. The calculator is not meant to replace the detailed calculation based on the rules applicable in the respective province or territory.
C46: 12 | D46: All amounts, other than percentages, are in Canadian dollars.

Sheet Sortie
B4: Quel patrimoine laissez-vous réellement ?
Q10: v2024
B12: Vous avez passé votre vie à bâtir votre patrimoine et vous aimeriez que vos proches continuent de récolter les fruits de votre labeur. Toutefois, il y aura de l’impôt et des frais à payer en espèces avant de procéder au transfert de votre actif à vos bénéficiaires. Les frais et l’impôt peuvent être plus élevés que vous ne le croyez et réduire considérablement le montant de la succession qui revient à vos bénéficiaires. De plus, si votre succession ne dispose pas de liquidités suffisantes pour payer ces dépenses, certains biens pourraient devoir être vendus rapidement, notamment votre maison, votre chalet ou vos véhicules.
B13: Le graphique ci-dessous représente une estimation de ce qui pourrait arriver à votre succession ainsi que le manque de fonds pour vos bénéficiaires.
B16: Les impôts et les dernières dépenses peuvent réduire la succession que vous prévoyez laisser à votre bénéficiaire.
D17: Vous comptez laisser ceci à votre bénéficiaire :
D18: ='Raw Data'!E22 -> 24,1 M$ | K18: Diminution attendue de la succession en raison des dettes, des dépenses et des impôts :
K20: ='Raw Data'!E20 -> 8,2 M$
D22: Voici ce que recevra probablement votre bénéficiaire : | K22: Pensez à inclure ce montant pour déterminer votre besoin en assurance vie permanente.
D23: ='Raw Data'!E19 -> 15,9 M$
B27: Le capital-décès d’une police d’assurance vie RBC pourrait servir à payer la dette d’impôt et les autres dépenses, et éviter la réduction du patrimoine disponible pour les bénéficiaires.
B29: ="Communiquez avec "&IF(Fre_Adv_Use_In_Printouts="Non","votre conseiller RBC",Fre_Prepared_By)&" dès aujourd’hui !" -> Communiquez avec votre conseiller RBC dès aujourd’hui !

Sheet Entrée
C8: Préparé par: | H8: Smith Advisors
C9: Inclure dans les impressions: | P9: Non
W11: ESTIMATION DU TRANSFERT DE PATRIMOINE, version 2024
C16: À propos de cette calculatrice
C18: L’objectif de cette calculatrice est d’estimer les frais d’homologation/l’impôt sur l’administration des successions et l’impôt sur le revenu qui pourraient être payables à votre décès en fonction des éléments d’actif que vous pourriez détenir à ce moment-là et de montrer leur incidence sur votre succession. Le calcul suppose que vous êtes célibataire ou le dernier conjoint ou conjoint de fait décédé.
C19: Une police d’assurance vie permanente RBC peut constituer une excellente solution pour optimiser la liquidité de votre succession.
C25: Renseignements sur le client
H28: Nom du client | I28: John Smith | AF28: Âge du client | AG28: 68 | AQ28: Âge de comparaison | AR28: 85 | BD28: Province de résidence | BE28: AB | BR28: Taux d’imposition marginal | BS28: 50.00%
C35: Renseignements sur les éléments d’actif
D38: Type d’élément d’actif | AC38: Désignation de bénéficiaire | AJ38: PBR / coût | AP38: Cotisation annuelle | AV38: JVM actuelle | BB38: Taux de croissance | BH38: Valeur future | BN38: Revenu/gain imposable | BT38: Succession
D40: Espèces | BN40: 0 | BT40: =BH40 -> 0
D42: REER | AE42: Non | AP42: 5,000 | AV42: 500,000 | BB42: 4.00% | BH42: =IF($AR$28>71,0,FV(BB42,$AR$28-$AG$28,-AP42,-AV42,1)) -> 0 | BN42: =+IF(AR28>71,0,BH42) -> 0 | BT42: =IF(AE42='List French'!$B$20,0,BH42) -> 0
D44: FERR | AE44: Non | BH44: =IF($AR$28<72,0,VLOOKUP($AR$28,'RRIF French'!$A$4:$F$43,6)) -> 209,026 | BN44: =+BH44 -> 209,026 | BT44: =IF(AE44='List French'!$B$20,0,BH44) -> 209,026
D46: CELI | AE46: Non | BH46: =FV(BB46,+$AR$28-$AG$28,-AP46,-AV46,1) -> 0 | BN46: 0 | BT46: =IF(AE46='List French'!$B$20,0,BH46) -> 0
D48: Placements non enregistrés (axés sur la croissance et les gains en capital) | AE48: Non | BH48: =FV(BB48,+$AR$28-$AG$28,-AP48,-AV48,1) -> 0 | BN48: =+(BH48-AJ48-(AP48*($AR$28-$AG$28)))*'List French'!$B$1 -> 0 | BT48: =IF(AE48='List French'!$B$20,0,BH48) -> 0
D50: Placements non enregistrés (fonds distincts, le cas échéant) | AE50: Non | BH50: =FV(BB50,+$AR$28-$AG$28,-AP50,-AV50,1) -> 0 | BN50: =+(BH50-AJ50-(AP50*($AR$28-$AG$28)))*'List French'!$B$1 -> 0 | BT50: =IF(AE50='List French'!$B$20,0,BH50) -> 0
D52: Placements non enregistrés (autres) | AE52: Non | BH52: =FV(BB52*(1-$BS$28),+$AR$28-$AG$28,-AP52,-AV52,1) -> 0 | BN52: 0 | BT52: =IF(AE52='List French'!$B$20,0,BH52) -> 0
D54: Terrain | BH54: =FV(BB54,+$AR$28-$AG$28,,-AV54,1) -> 0 | BN54: =+(BH54-AJ54)*'List French'!$B$1 -> 0 | BT54: =+BH54 -> 0
D56: Résidence principale | BH56: =FV(BB56,+$AR$28-$AG$28,,-AV56,1) -> 0 | BN56: =+MAX(0,(BH56-AJ56)*'List French'!$B$1) -> 0 | BT56: =+BH56 -> 0
D58: Autres biens immeubles (les actifs d’entreprise ou de location ne peuvent pas avoir de pertes en capital) | BH58: =FV(BB58,+$AR$28-$AG$28,,-AV58,1) -> 0 | BN58: =+MAX(0,(BH58-AJ58)*'List French'!$B$1) -> 0 | BT58: =+BH58 -> 0
D60: Actions d’entreprise (ordinaires / titres de croissance) | AE60: Non | AV60: 1,000,000 | BH60: =FV(BB60,+$AR$28-$AG$28,,-AV60,1) -> 1,000,000 | BN60: =+(BH60-AJ60)*'List French'!$B$1 -> 500,000 | BT60: =IF(AE60='List French'!$B$20,0,BH60) -> 1,000,000
D62: Actions d’entreprise (valeur fixe / actions grevant la succession) | AE62: Non | AV62: 1,000,000 | BH62: =AV62 -> 1,000,000 | BN62: =+(BH62-AJ62)*'List French'!$B$1 -> 500,000 | BT62: =IF(AE62='List French'!$B$20,0,BH62) -> 1,000,000
D64: Autres éléments d’actif générant des gains en capital (p. ex. pièces d’or, peinture, etc.) | BH64: =FV(BB64,+$AR$28-$AG$28,,-AV64,1) -> 0 | BN64: =+(BH64-AJ64)*'List French'!$B$1 -> 0 | BT64: =+BH64 -> 0
D66: Estimation de la récupération de l’amortissement sur les actifs d’entreprise détenus à titre personnel | BT66: 0
D68: Estimation de la perte finale sur les actifs d’entreprise ou de location détenus par des particuliers | BT68: 0
D70: Autres actifs facilement encaissables | BH70: =FV(BB70,+$AR$28-$AG$28,-AP70,-AV70,1) -> 0 | BN70: =+(BH70-AJ70-(AP70*($AR$28-$AG$28)))*'List French'!$B$1 -> 0 | BT70: =BH70 -> 0
D72: Autres actifs non encaissables | BH72: =FV(BB72,+$AR$28-$AG$28,-AP72,-AV72,1) -> 0 | BN72: =+(BH72-AJ72-(AP72*($AR$28-$AG$28)))*'List French'!$B$1 -> 0 | BT72: =BH72 -> 0
D74: Portion garantie de la rente | BT74: =BH74 -> 0
D76: Couverture d’assurance vie en vigueur (prestation de décès – seulement si la succession est le bénéficiaire) | BH76: 200,000 | BN76: 0 | BT76: =BH76 -> 200,000
BH79: Total | BN79: =SUM(BN40:BN76) -> 1,209,026 | BT79: =SUM(BT40:BT76) -> 2,409,026
C86: Retenues
BN89: Revenu/gain imposable | BT89: Succession
D91: Prêt hypothécaire/emprunt sur bien immobilier inclus dans la succession ci-dessus | BN91: 0
D93: Exemption pour résidence principale (%) | AV93: 100.00% | BN93: =+BN56*AV93 -> 0
D95: Déduction cumulative des gains en capital (½ du montant de l’exemption) | AV95: =+VLOOKUP($AR$28,'LTCGE French'!$B$2:$D$101,3) -> 840,337
D96: Maximum indexé en fonction de l’inflation de la déduction cumulative des gains en capital à l’âge de comparaison
D98: Other
BH101: Total | BN101: =SUM(BN93:BN98) -> 0 | BT101: =BT91 -> 0
C108: Sommaire des liquidités
D111: Actif liquide | K111: =BH40+BH42+BH44+BH46+BH48+BH50+BH52+BH70 -> 209,026 | R111: Prestation de décès à la succession | AJ111: =BH76 -> 200,000 | AQ111: Total des espèces requises | BC111: =U140 -> 821,850 | BJ111: Excédent / (Déficit) | BS111: =K111-BC111+AJ111 -> (412,824)
C118: Passif et dépenses
P121: En % de la succession | U121: Montant
D123: Prêt hypothécaire | U123: =BT91 -> 0
D125: Autres dettes et passifs au décès
D127: Frais juridiques | P127: 2.00% | U127: =+P127*($BT$79-$BT$101) -> 48,181
D129: Frais de comptabilité | P129: 2.00% | U129: =+P129*($BT$79-$BT$101) -> 48,181
D131: Honoraires du fiduciaire / liquidateur | P131: 5.00% | U131: =+P131*($BT$79-$BT$101) -> 120,451
D133: Autres dépenses finales
D135: Impôt sur le revenu à payer | U135: =+(BN79-BN101)*$BS$28 -> 604,513
D137: Frais d’homologation à payer | U137: =+VLOOKUP(BE28,'List French'!$A$5:$D$17,4) -> 525
D140: Diminution attendue de la succession en raison des dettes, des dépenses et des impôts | U140: =SUM(U123:U137) -> 821,850
C144: ="Le besoin potentiel d’assurance vie nécessaire pour éviter que votre succession ne diminue s’élève à "&TEXT(U140,"#00 000")&" $. "&IF(Fre_Adv_Use_In_Printouts="Non","Communiquez avec votre agent d'assurance vie RBC pour trouver la solution d'assurance qui vous convient.","Contactez "&Fre_Prepared_By&" pour trouver la solution d’assurance qui vous convient.") -> Le besoin potentiel d’assurance vie nécessaire pour éviter que votre succession ne diminue s’élève à 821 850 $. Communiquez avec votre agent d'assurance vie RBC pour trouver la solution d'assurance qui vous convient.

Sheet Considérations
C16: Considérations d’ordre général
C19: 1 | D19: La Compagnie d’assurance vie RBC recommande de consulter vos conseillers juridiques, comptables, fiscaux et financiers avant de prendre une décision. Les renseignements contenus dans cette présentation ne devraient pas être interprétés comme des conseils d’ordre fiscal, juridique, comptable ou financier.
C20: 2 | D20: La Compagnie d’assurance vie RBC n’accepte aucune responsabilité pour toute perte directe, indirecte ou consécutive découlant des renseignements dans cette présentation.
C21: 3 | D21: Des précautions raisonnables ont été prises pour garantir l’exactitude des calculs et des renseignements fournis, mais des erreurs et des omissions sont possibles.
C22: 4 | D22: Si une police d’assurance est établie, la couverture sera régie par les conditions de la police. Cette présentation ne fait pas partie d’une police établie.
C23: 5 | D23: La souscription d’une police d’assurance vie est un engagement à long terme. Le rachat de la police peut avoir d’importantes répercussions fiscales et financières.
C24: 6 | D24: Il ne s’agit pas d’un exposé d’assurance.
C25: 7 | D25: Afin d’assurer l’exactitude des chiffres que vous communiquez à vos clients, il est important que vous utilisiez la dernière version de l’outil Estimation du transfert de patrimoine RBC.
C32: Éléments à considérer dans le calcul et hypothèses
C35: 1 | D35: Le passif successoral est calculé en multipliant le revenu ou gain imposable par le taux d’imposition marginal. Sauf indication contraire, tout autre crédit ou toute autre déduction auxquels le client pourrait avoir droit n’ont pas été pris en compte dans ce calcul.
C36: =1+C35 -> 2 | D36: ="Le taux d’inflation annuel utilisé est de "&LTCGE!$H$1&"." -> Le taux d’inflation annuel utilisé est de 30,0%.
C37: 3 | D37: Le montant maximum de l’exemption cumulative des gains en capital pour l’année de comparaison est une estimation. Le plafond réel applicable pour l’année du décès peut être différent de celui indiqué dans la présente présentation.
C38: 4 | D38: Il est présumé qu’aucun report de pertes en capital ou autres ne pourra être utilisé pour réduire les gains ou le revenu imposables au cours de l’année du décès.
C39: 5 | D39: Les obligations fiscales à l’étranger et les crédits d’impôt potentiels découlant de ces obligations fiscales ne sont pas pris en compte dans le calcul.
C40: 6 | D40: Les gains ou les pertes en capital sont calculés en fonction du prix de base rajusté et de la juste valeur de marché projetée des actifs. Les règles spéciales qui s’appliquent aux biens à usage personnel et aux biens meubles désignés ne sont pas prises en compte dans ce calcul.
C41: 7 | D41: La valeur future du FERR est calculée en supposant que le montant minimum requis en vertu de la Loi de l’impôt sur le revenu (Canada) sera retiré à partir de l’âge de 71 ans.
C42: 8 | D42: Lorsqu’un bénéficiaire a été désigné, on suppose que la valeur de cet élément d’actif ne sera pas incluse dans le calcul de l’impôt successoral.
C43: 9 | D43: On suppose qu’aucun retrait ne sera effectué des actifs et qu’ils continueront de croître à un taux de croissance déterminé chaque année. Toutefois, il est possible que la valeur des actifs diminue même si aucun retrait n’est effectué.
C44: 10 | D44: La calculatrice ne calcule que le revenu ou le gain qui peut découler de divers éléments d’actif détenus au décès. Elle ne tient pas compte d’autres revenus gagnés au cours de l’année du décès ou de l’une des années précédentes.
C45: 11 | D45: L’impôt successoral éventuel est une estimation simplifiée seulement. La calculatrice ne vise pas à remplacer le calcul détaillé selon les règles applicables dans la province ou le territoire visé.
C46: 12 | D46: Tous les montants, autres que les pourcentages, sont exprimés en dollars canadiens.

Sheet Raw Data (hidden)
B2: French
G3: M
B4: Your beneficiary likely gets | C4: =C19 -> $1.6 M | F4: Liquid | G4: =Input!K111 -> 209,026 | H4: =G4 -> $0.2 M | I4: =IF($B$2="French",SUBSTITUTE(TEXT(H4/100000,"# ##0.0"),".",",")&" M$",H4) -> 2,1 M$
B5: Your estate pays in taxes etc. | C5: =C20 -> $0.8 M | F5: Non-Liquid | G5: =C7-G4 -> 2,200,000 | H5: =G5 -> $2.2 M | I5: =IF($B$2="French",SUBSTITUTE(TEXT(H5/100000,"# ##0.0"),".",",")&" M$",H5) -> 22,0 M$
C7: =Input!$BP$79 -> 2,409,026
B10: Votre bénéficiaire reçoit | C10: =C4 -> $1.6 M | D10: =IF($B$2="French",SUBSTITUTE(TEXT(C10/100000,"# ##0.0"),".",",")&" M$",C10) -> 15,9 M$
B11: Votre succession paie en impôts, etc | C11: =C5 -> $0.8 M | D11: =IF($B$2="French",SUBSTITUTE(TEXT(C11/100000,"# ##0.0"),".",",")&" M$",C11) -> 8,2 M$
B19: Your beneficiary likely gets | C19: =C22-C20 -> 1,587,176 | D19: =C19 -> $1.6 M | E19: =IF($B$2="French",SUBSTITUTE(TEXT(D19/100000,"# ##0.0"),".",",")&" M$",D19) -> 15,9 M$
B20: Your estate pays in taxes etc. | C20: =Input!$U$140 -> 821,850 | D20: =C20 -> $0.8 M | E20: =IF($B$2="French",SUBSTITUTE(TEXT(D20/100000,"# ##0.0"),".",",")&" M$",D20) -> 8,2 M$
C22: =Input!$BP$79 -> 2,409,026 | D22: =C22 -> $2.4 M | E22: =IF($B$2="French",SUBSTITUTE(TEXT(D22/100000,"# ##0.0"),".",",")&" M$",D22) -> 24,1 M$
B26: Available for beneficiary | C26: =C4 -> $1.6 M | D26: =IF($B$2="French",SUBSTITUTE(TEXT(C26/100000,"# ##0.0"),".",",")&" M$",C26) -> 15,9 M$
B27: Shrinkage due to tax and expenses | C27: =C5 -> $0.8 M | D27: =IF($B$2="French",SUBSTITUTE(TEXT(C27/100000,"# ##0.0"),".",",")&" M$",C27) -> 8,2 M$
B33: Total Estate Value | C33: =D22 -> $2.4 M | D33: =IF($B$2="French",SUBSTITUTE(TEXT(C33/100000,"# ##0.0"),".",",")&" M$",C33) -> 24,1 M$
B34: Shrinkage due to tax and other expenses | C34: =D20 -> $0.8 M | D34: 8,2 M$
B35: Liquid Assets | C35: =H4 -> $0.2 M | D35: 2,1 M$
B37: Total Estate Value
B38: Shrinkage due to tax and other expenses
B39: Liquid Assets

Sheet Notes (hidden)
A2: Nehal
A3: Done | B3: 1. The text in the “about this calculator should be changed as under:
B4: The purpose of this calculator is to estimate the income tax and estate tax that may become payable upon your death based on the assets you may own at that time and show its impact on your estate. The calculation assumes that you are either single or last to die spouse/common law-partner.
A5: Done | B5: 2. The width of client information section should be expanded to match the size of other sections. May be client name, age and comparison age would appear in one row, and the province and marginal tax rate would appear in next row.
B6: 3. If possible design the calculator such that if the client’s current age is 72 or higher, the RRSP row does not appear.
A7: Will see what I can do during the coding part of this calculator. Might be able to hide the RRSP row altogether when the age is high enough.
A8: Done | B8: 4. The formulas in “data entry” tab of the excel file Is end may be directly included in this input tab. The we will not need data entry tab.
A9: It will | B9: 5. The column width needs to be adjusted so that all content fit in either portrait or landscape orientation.
A10: It will | B10: 6. Also the $ amount cell should adjust auto-adjust the width based on the value entered/calculated. The value will be without decimals (except for %).
A11: Done | B11: 7. Please expand the width of deductions section so that columns align with the section above.
B12: 8. If we are going with pie chart, the it may be added besides the “liabilities and expenses” section.
A13: Done | B13: 9. The “total” in “liabilities and expenses” section may be retitled as “expected shrinkage in estate due liabilities, expenses and taxes”. That may help lead the conversation to potential insurance need.
B14: 10. Mitch / Jean Guy – please suggest a client-friendly name for this calculator based on your experience in the field. Not sure if we want to call the final version “terminal tax calculator”.
A19: Mitch
A20: Done | B20: In the “about this calculator” section, we can add a sentence that says “A permanent life insurance policy like RBC Insurance’s Growth Insurance or Growth Insurance Plus may provide an excellent solution for your estate’s liquidity shortfall”.
A21: Done | B21: Most of the headings are pretty self explanatory but for the two that say “please specify”, I would eliminate that wording as there is nowhere on the sheet to specify. I don’t want to put a bunch of explanatory notes where not necessary. I would like to keep this simple and flexible.
A22: Done | B22: In deductions, I would change “real estate property” to “real property”
A23: Done | B23: I would like to see a title like “Estate Liability Calculator” as the calculator encompasses taxes and other liabilities
B24: I agree with Nehal’s Point 3, but another solution could be to not allow RRSP input with some sort of warning. Whatever is easiest.
B25: Personally, I like the left alignments and different widths for the different sections.
B27: The purpose of this calculator is to estimate the income tax and estate administration tax/probate fees that may become payable upon your death based on the assets you may own at that time and show its impact on your estate. The calculation assumes that you are either single or last to die spouse/common law-partner.
A29: Nehal - 2nd email
B30: 1. Following cells cannot have value less than zero.
A31: done | B31: A. All data entry cells
A32: done | B32: B. W51 (i.e. loss on disposition of principal residence is deemed to be nil)
A33: done | B33: 2. Cell W63 cannot be positive (i.e. terminal loss amount should be entered as negative).
A34: done | B34: 3. The maximum value in cell W90 should be lower of (i) K90, and (ii) W55. The minimum value would be zero.
A35: yes | B35: 4. I am assuming all greyed out cells will be protected.
A36: when protected, formulae are not visible | B36: 5. Is it possible to hide the formula that appear in various cells in the final version?
A38: Note does not move | B38: 1. The notes in cell BJ43, BJ47 and BJ86 should appear similar to the comment in BJ59.
A39: Done | B39: 2. Need to add FV calculation formula in BD61 and BD63.
A40: Done | B40: 3. Need to enter gain/loss calculation formula in cell BJ61 and BJ63 – the formula will be similar to the one in cell BJ39.
A41: Done | B41: 4. Please delete the cell AG65 and AS65.
A42: Done | B42: 5. Please add following note to cell BD65 – This is the lump sum amount to be paid on termination of the annuity.
A43: Done | B43: 6. Please add following note to cell BJ65 – The lump sum amount to be paid less the adjusted cost basis of the annuity at death. If negative – enter zero. Is it possible to add a validating macro in the background that will prompt the user to correct the data entry if a negative amount is entered.
A44: Done | B44: 7. Also, a $ sign should appear before all amounts, including the values in pie chart.

Sheet List (hidden)
A1: Capital gains inclusion factor | B1: 50.00%
A3: Province | B3: Estate tax
A5: AB | B5: =+'Estate tax rates'!H7 -> 525.00 | C5: Alberta | D5: =B5 -> 525.00
A6: BC | B6: =+'Estate tax rates'!H12 -> 33,390.00 | C6: British Columbia | D6: =B6 -> 33,390.00
A7: MB | B7: =+'Estate tax rates'!H15 -> 0 | C7: Manitoba | D7: 0
A8: NB | B8: =+'Estate tax rates'!H22 -> 12,050.00 | C8: New Brunswick | D8: 12,050.00
A9: NL | B9: =+'Estate tax rates'!H26 -> 14,508.60 | C9: Newfoundland & Labrador | D9: 14,508.60
A10: NT | B10: =+'Estate tax rates'!H33 -> 435.00 | C10: Northwest Territories | D10: 435.00
A11: NS | B11: =+'Estate tax rates'!H40 -> 40,157.15 | C11: Nova Scotia | D11: 40,157.15
A12: NU | B12: =+'Estate tax rates'!H47 -> 425.00 | C12: Nunavut | D12: 425.00
A13: ON | B13: =+'Estate tax rates'!H51 -> 35,400.00 | C13: Ontario | D13: 35,400.00
A14: PE | B14: =+'Estate tax rates'!H58 -> 9,640.00 | C14: Prince Edward Island | D14: 9,640.00
A15: QC | B15: =+'Estate tax rates'!H61 -> 230.00 | C15: Quebec | D15: 230.00
A16: SK | B16: =+'Estate tax rates'!H65 -> 17,070.00 | C16: Saskatchewan | D16: 17,070.00
A17: YT | B17: =+'Estate tax rates'!H69 -> 140.00 | C17: Yukon | D17: 140.00
A19: Data validation for beneficiary designation
A20: Yes | B20: Oui
A21: No | B21: Non
A23: Investment rate of return
A25: 0.25%
A26: =+A25+0.25% -> 0.50%
A27: =+A26+0.25% -> 0.75%
A28: 1.00%
A29: 1.25%
A30: 1.50%
A31: 1.75%
A32: 2.00%
A33: 2.25%
A34: 2.50%
A35: 2.75%
A36: 3.00%
A37: 3.25%
A38: 3.50%
A39: 3.75%
A40: 4.00%
A41: 4.25%
A42: 4.50%
A43: 4.75%
A44: 5.00%
A45: 5.25%
A46: 5.50%
A47: 5.75%
A48: 6.00%
A49: 6.25%
A50: 6.50%
A51: 6.75%
A52: 7.00%
A53: 7.25%
A54: 7.50%
A55: 7.75%
A56: 8.00%
A57: 8.25%
A58: 8.50%
A59: 8.75%
A60: 9.00%
A61: 9.25%
A62: 9.50%
A63: 9.75%
A64: 10.00%
A65: 10.25%
A66: 10.50%
A67: 10.75%
A68: 11.00%
A69: 11.25%
A70: 11.50%
A71: 11.75%
A72: 12.00%

Sheet LTCGE (hidden)
A1: Year | B1: Age | C1: LTCGE limit | D1: LTCGD limit | F1: Inflation factor | G1: 3% | H1: =SUBSTITUTE(TEXT(G1*10,"0.0%"),".",",") -> 30,0%
A2: =YEAR(NOW()) -> 2024 | B2: =Input!$AG$28 -> 68 | C2: =VLOOKUP(A2,$H$3:$I$4,2,FALSE) -> 1,016,836.00 | D2: =+C2*50% -> 508,418.00 | I2: Actual LTCGE
A3: =+A2+1 -> 2025 | B3: =+B2+1 -> 69 | C3: =IF(ISNA(VLOOKUP(A3,$H$3:$I$4,2,FALSE)),C2*(1+$G$1),VLOOKUP(A3,$H$3:$I$4,2,FALSE)) -> 1,047,341.08 | D3: =+C3*50% -> 523,670.54 | H3: 2023 | I3: 971,190.00
A4: =+A3+1 -> 2026 | B4: =+B3+1 -> 70 | C4: =IF(ISNA(VLOOKUP(A4,$H$3:$I$4,2,FALSE)),C3*(1+$G$1),VLOOKUP(A4,$H$3:$I$4,2,FALSE)) -> 1,078,761.31 | D4: 539,380.66 | H4: 2024 | I4: 1,016,836.00
A5: 2027 | B5: 71 | C5: 1,111,124.15 | D5: 555,562.08
A6: 2028 | B6: 72 | C6: 1,144,457.88 | D6: 572,228.94
A7: 2029 | B7: 73 | C7: 1,178,791.61 | D7: 589,395.81
A8: 2030 | B8: 74 | C8: 1,214,155.36 | D8: 607,077.68
A9: 2031 | B9: 75 | C9: 1,250,580.02 | D9: 625,290.01
A10: 2032 | B10: 76 | C10: 1,288,097.42 | D10: 644,048.71
A11: 2033 | B11: 77 | C11: 1,326,740.35 | D11: 663,370.17
A12: 2034 | B12: 78 | C12: 1,366,542.56 | D12: 683,271.28
A13: 2035 | B13: 79 | C13: 1,407,538.83 | D13: 703,769.42
A14: 2036 | B14: 80 | C14: 1,449,765.00 | D14: 724,882.50
A15: 2037 | B15: 81 | C15: 1,493,257.95 | D15: 746,628.97
A16: 2038 | B16: 82 | C16: 1,538,055.69 | D16: 769,027.84
A17: 2039 | B17: 83 | C17: 1,584,197.36 | D17: 792,098.68
A18: 2040 | B18: 84 | C18: 1,631,723.28 | D18: 815,861.64
A19: 2041 | B19: 85 | C19: 1,680,674.98 | D19: 840,337.49
A20: 2042 | B20: 86 | C20: 1,731,095.22 | D20: 865,547.61
A21: 2043 | B21: 87 | C21: 1,783,028.08 | D21: 891,514.04
A22: 2044 | B22: 88 | C22: 1,836,518.92 | D22: 918,259.46
A23: 2045 | B23: 89 | C23: 1,891,614.49 | D23: 945,807.25
A24: 2046 | B24: 90 | C24: 1,948,362.93 | D24: 974,181.46
A25: 2047 | B25: 91 | C25: 2,006,813.81 | D25: 1,003,406.91
A26: 2048 | B26: 92 | C26: 2,067,018.23 | D26: 1,033,509.11
A27: 2049 | B27: 93 | C27: 2,129,028.77 | D27: 1,064,514.39
A28: 2050 | B28: 94 | C28: 2,192,899.64 | D28: 1,096,449.82
A29: 2051 | B29: 95 | C29: 2,258,686.63 | D29: 1,129,343.31
A30: 2052 | B30: 96 | C30: 2,326,447.23 | D30: 1,163,223.61
A31: 2053 | B31: 97 | C31: 2,396,240.64 | D31: 1,198,120.32
A32: 2054 | B32: 98 | C32: 2,468,127.86 | D32: 1,234,063.93
A33: 2055 | B33: 99 | C33: 2,542,171.70 | D33: 1,271,085.85
A34: 2056 | B34: 100 | C34: 2,618,436.85 | D34: 1,309,218.42
A35: 2057 | B35: 101 | C35: 2,696,989.95 | D35: 1,348,494.98
A36: 2058 | B36: 102 | C36: 2,777,899.65 | D36: 1,388,949.83
A37: 2059 | B37: 103 | C37: 2,861,236.64 | D37: 1,430,618.32
A38: 2060 | B38: 104 | C38: 2,947,073.74 | D38: 1,473,536.87
A39: 2061 | B39: 105 | C39: 3,035,485.95 | D39: 1,517,742.98
A40: 2062 | B40: 106 | C40: 3,126,550.53 | D40: 1,563,275.27
A41: 2063 | B41: 107 | C41: 3,220,347.05 | D41: 1,610,173.52
A42: 2064 | B42: 108 | C42: 3,316,957.46 | D42: 1,658,478.73
A43: 2065 | B43: 109 | C43: 3,416,466.18 | D43: 1,708,233.09
A44: 2066 | B44: 110 | C44: 3,518,960.17 | D44: 1,759,480.08
A45: 2067 | B45: 111 | C45: 3,624,528.97 | D45: 1,812,264.49
A46: 2068 | B46: 112 | C46: 3,733,264.84 | D46: 1,866,632.42
A47: 2069 | B47: 113 | C47: 3,845,262.79 | D47: 1,922,631.39
A48: 2070 | B48: 114 | C48: 3,960,620.67 | D48: 1,980,310.34
A49: 2071 | B49: 115 | C49: 4,079,439.29 | D49: 2,039,719.65
A50: 2072 | B50: 116 | C50: 4,201,822.47 | D50: 2,100,911.24
A51: 2073 | B51: 117 | C51: 4,327,877.15 | D51: 2,163,938.57
A52: 2074 | B52: 118 | C52: 4,457,713.46 | D52: 2,228,856.73
A53: 2075 | B53: 119 | C53: 4,591,444.86 | D53: 2,295,722.43
A54: 2076 | B54: 120 | C54: 4,729,188.21 | D54: 2,364,594.11
A55: 2077 | B55: 121 | C55: 4,871,063.86 | D55: 2,435,531.93
A56: 2078 | B56: 122 | C56: 5,017,195.77 | D56: 2,508,597.89
A57: 2079 | B57: 123 | C57: 5,167,711.65 | D57: 2,583,855.82
A58: 2080 | B58: 124 | C58: 5,322,742.99 | D58: 2,661,371.50
A59: 2081 | B59: 125 | C59: 5,482,425.28 | D59: 2,741,212.64
A60: 2082 | B60: 126 | C60: 5,646,898.04 | D60: 2,823,449.02
A61: 2083 | B61: 127 | C61: 5,816,304.98 | D61: 2,908,152.49
A62: 2084 | B62: 128 | C62: 5,990,794.13 | D62: 2,995,397.07
A63: 2085 | B63: 129 | C63: 6,170,517.96 | D63: 3,085,258.98
A64: 2086 | B64: 130 | C64: 6,355,633.50 | D64: 3,177,816.75
A65: 2087 | B65: 131 | C65: 6,546,302.50 | D65: 3,273,151.25
A66: 2088 | B66: 132 | C66: 6,742,691.58 | D66: 3,371,345.79
A67: 2089 | B67: 133 | C67: 6,944,972.32 | D67: =+C67*50% -> 3,472,486.16
A68: =+A67+1 -> 2090 | B68: =+B67+1 -> 134 | C68: =IF(ISNA(VLOOKUP(A68,$H$3:$I$4,2,FALSE)),C67*(1+$G$1),VLOOKUP(A68,$H$3:$I$4,2,FALSE)) -> 7,153,321.49 | D68: 3,576,660.75
A69: 2091 | B69: 135 | C69: 7,367,921.14 | D69: 3,683,960.57
A70: 2092 | B70: 136 | C70: 7,588,958.77 | D70: 3,794,479.39
A71: 2093 | B71: 137 | C71: 7,816,627.54 | D71: 3,908,313.77
A72: 2094 | B72: 138 | C72: 8,051,126.36 | D72: 4,025,563.18
A73: 2095 | B73: 139 | C73: 8,292,660.15 | D73: 4,146,330.08
A74: 2096 | B74: 140 | C74: 8,541,439.96 | D74: 4,270,719.98
A75: 2097 | B75: 141 | C75: 8,797,683.16 | D75: 4,398,841.58
A76: 2098 | B76: 142 | C76: 9,061,613.65 | D76: 4,530,806.83
A77: 2099 | B77: 143 | C77: 9,333,462.06 | D77: 4,666,731.03
A78: 2100 | B78: 144 | C78: 9,613,465.92 | D78: 4,806,732.96
A79: 2101 | B79: 145 | C79: 9,901,869.90 | D79: 4,950,934.95
A80: 2102 | B80: 146 | C80: 10,198,926.00 | D80: 5,099,463.00
A81: 2103 | B81: 147 | C81: 10,504,893.78 | D81: 5,252,446.89
A82: 2104 | B82: 148 | C82: 10,820,040.59 | D82: 5,410,020.29
A83: 2105 | B83: 149 | C83: 11,144,641.81 | D83: 5,572,320.90
A84: 2106 | B84: 150 | C84: 11,478,981.06 | D84: 5,739,490.53
A85: 2107 | B85: 151 | C85: 11,823,350.49 | D85: 5,911,675.25
A86: 2108 | B86: 152 | C86: 12,178,051.01 | D86: 6,089,025.50
A87: 2109 | B87: 153 | C87: 12,543,392.54 | D87: 6,271,696.27
A88: 2110 | B88: 154 | C88: 12,919,694.31 | D88: 6,459,847.16
A89: 2111 | B89: 155 | C89: 13,307,285.14 | D89: 6,653,642.57
A90: 2112 | B90: 156 | C90: 13,706,503.70 | D90: 6,853,251.85
A91: 2113 | B91: 157 | C91: 14,117,698.81 | D91: 7,058,849.40
A92: 2114 | B92: 158 | C92: 14,541,229.77 | D92: 7,270,614.89
A93: 2115 | B93: 159 | C93: 14,977,466.67 | D93: 7,488,733.33
A94: 2116 | B94: 160 | C94: 15,426,790.67 | D94: 7,713,395.33
A95: 2117 | B95: 161 | C95: 15,889,594.39 | D95: 7,944,797.19
A96: 2118 | B96: 162 | C96: 16,366,282.22 | D96: 8,183,141.11
A97: 2119 | B97: 163 | C97: 16,857,270.69 | D97: 8,428,635.34
A98: 2120 | B98: 164 | C98: 17,362,988.81 | D98: 8,681,494.40
A99: 2121 | B99: 165 | C99: 17,883,878.47 | D99: 8,941,939.23
A100: 2122 | B100: 166 | C100: 18,420,394.82 | D100: 9,210,197.41
A101: 2123 | B101: 167 | C101: 18,973,006.67 | D101: 9,486,503.33

Sheet LTCGE French (hidden)
A1: Year | B1: Age | C1: LTCGE limit | D1: LTCGD limit | F1: Inflation factor | G1: =LTCGE!G1 -> 3%
A2: =YEAR(NOW()) -> 2024 | B2: =Entrée!$AG$28 -> 68 | C2: =VLOOKUP(A2,LTCGE!$H$3:$I$4,2,FALSE) -> 1,016,836.00 | D2: =+C2*50% -> 508,418.00
A3: =+A2+1 -> 2025 | B3: =+B2+1 -> 69 | C3: =IF(ISNA(VLOOKUP(A3,LTCGE!$H$3:$I$4,2,FALSE)),C2*(1+$G$1),VLOOKUP(A3,LTCGE!$H$3:$I$4,2,FALSE)) -> 1,047,341.08 | D3: =+C3*50% -> 523,670.54
A4: =+A3+1 -> 2026 | B4: 70 | C4: =IF(ISNA(VLOOKUP(A4,LTCGE!$H$3:$I$4,2,FALSE)),C3*(1+$G$1),VLOOKUP(A4,LTCGE!$H$3:$I$4,2,FALSE)) -> 1,078,761.31 | D4: 539,380.66
A5: 2027 | B5: 71 | C5: =IF(ISNA(VLOOKUP(A5,LTCGE!$H$3:$I$4,2,FALSE)),C4*(1+$G$1),VLOOKUP(A5,LTCGE!$H$3:$I$4,2,FALSE)) -> 1,111,124.15 | D5: 555,562.08
A6: 2028 | B6: 72 | C6: =IF(ISNA(VLOOKUP(A6,LTCGE!$H$3:$I$4,2,FALSE)),C5*(1+$G$1),VLOOKUP(A6,LTCGE!$H$3:$I$4,2,FALSE)) -> 1,144,457.88 | D6: 572,228.94
A7: 2029 | B7: 73 | C7: =IF(ISNA(VLOOKUP(A7,LTCGE!$H$3:$I$4,2,FALSE)),C6*(1+$G$1),VLOOKUP(A7,LTCGE!$H$3:$I$4,2,FALSE)) -> 1,178,791.61 | D7: 589,395.81
A8: 2030 | B8: 74 | C8: =IF(ISNA(VLOOKUP(A8,LTCGE!$H$3:$I$4,2,FALSE)),C7*(1+$G$1),VLOOKUP(A8,LTCGE!$H$3:$I$4,2,FALSE)) -> 1,214,155.36 | D8: 607,077.68
A9: 2031 | B9: 75 | C9: =IF(ISNA(VLOOKUP(A9,LTCGE!$H$3:$I$4,2,FALSE)),C8*(1+$G$1),VLOOKUP(A9,LTCGE!$H$3:$I$4,2,FALSE)) -> 1,250,580.02 | D9: 625,290.01
A10: 2032 | B10: 76 | C10: =IF(ISNA(VLOOKUP(A10,LTCGE!$H$3:$I$4,2,FALSE)),C9*(1+$G$1),VLOOKUP(A10,LTCGE!$H$3:$I$4,2,FALSE)) -> 1,288,097.42 | D10: 644,048.71
A11: 2033 | B11: 77 | C11: =IF(ISNA(VLOOKUP(A11,LTCGE!$H$3:$I$4,2,FALSE)),C10*(1+$G$1),VLOOKUP(A11,LTCGE!$H$3:$I$4,2,FALSE)) -> 1,326,740.35 | D11: 663,370.17
A12: 2034 | B12: 78 | C12: =IF(ISNA(VLOOKUP(A12,LTCGE!$H$3:$I$4,2,FALSE)),C11*(1+$G$1),VLOOKUP(A12,LTCGE!$H$3:$I$4,2,FALSE)) -> 1,366,542.56 | D12: 683,271.28
A13: 2035 | B13: 79 | C13: =IF(ISNA(VLOOKUP(A13,LTCGE!$H$3:$I$4,2,FALSE)),C12*(1+$G$1),VLOOKUP(A13,LTCGE!$H$3:$I$4,2,FALSE)) -> 1,407,538.83 | D13: 703,769.42
A14: 2036 | B14: 80 | C14: =IF(ISNA(VLOOKUP(A14,LTCGE!$H$3:$I$4,2,FALSE)),C13*(1+$G$1),VLOOKUP(A14,LTCGE!$H$3:$I$4,2,FALSE)) -> 1,449,765.00 | D14: 724,882.50
A15: 2037 | B15: 81 | C15: =IF(ISNA(VLOOKUP(A15,LTCGE!$H$3:$I$4,2,FALSE)),C14*(1+$G$1),VLOOKUP(A15,LTCGE!$H$3:$I$4,2,FALSE)) -> 1,493,257.95 | D15: 746,628.97
A16: 2038 | B16: 82 | C16: =IF(ISNA(VLOOKUP(A16,LTCGE!$H$3:$I$4,2,FALSE)),C15*(1+$G$1),VLOOKUP(A16,LTCGE!$H$3:$I$4,2,FALSE)) -> 1,538,055.69 | D16: 769,027.84
A17: 2039 | B17: 83 | C17: =IF(ISNA(VLOOKUP(A17,LTCGE!$H$3:$I$4,2,FALSE)),C16*(1+$G$1),VLOOKUP(A17,LTCGE!$H$3:$I$4,2,FALSE)) -> 1,584,197.36 | D17: 792,098.68
A18: 2040 | B18: 84 | C18: =IF(ISNA(VLOOKUP(A18,LTCGE!$H$3:$I$4,2,FALSE)),C17*(1+$G$1),VLOOKUP(A18,LTCGE!$H$3:$I$4,2,FALSE)) -> 1,631,723.28 | D18: 815,861.64
A19: 2041 | B19: 85 | C19: =IF(ISNA(VLOOKUP(A19,LTCGE!$H$3:$I$4,2,FALSE)),C18*(1+$G$1),VLOOKUP(A19,LTCGE!$H$3:$I$4,2,FALSE)) -> 1,680,674.98 | D19: 840,337.49
A20: =+A19+1 -> 2042 | B20: 86 | C20: =IF(ISNA(VLOOKUP(A20,LTCGE!$H$3:$I$4,2,FALSE)),C19*(1+$G$1),VLOOKUP(A20,LTCGE!$H$3:$I$4,2,FALSE)) -> 1,731,095.22 | D20: 865,547.61
A21: 2043 | B21: 87 | C21: =IF(ISNA(VLOOKUP(A21,LTCGE!$H$3:$I$4,2,FALSE)),C20*(1+$G$1),VLOOKUP(A21,LTCGE!$H$3:$I$4,2,FALSE)) -> 1,783,028.08 | D21: 891,514.04
A22: 2044 | B22: 88 | C22: =IF(ISNA(VLOOKUP(A22,LTCGE!$H$3:$I$4,2,FALSE)),C21*(1+$G$1),VLOOKUP(A22,LTCGE!$H$3:$I$4,2,FALSE)) -> 1,836,518.92 | D22: 918,259.46
A23: 2045 | B23: 89 | C23: =IF(ISNA(VLOOKUP(A23,LTCGE!$H$3:$I$4,2,FALSE)),C22*(1+$G$1),VLOOKUP(A23,LTCGE!$H$3:$I$4,2,FALSE)) -> 1,891,614.49 | D23: 945,807.25
A24: 2046 | B24: 90 | C24: =IF(ISNA(VLOOKUP(A24,LTCGE!$H$3:$I$4,2,FALSE)),C23*(1+$G$1),VLOOKUP(A24,LTCGE!$H$3:$I$4,2,FALSE)) -> 1,948,362.93 | D24: 974,181.46
A25: 2047 | B25: 91 | C25: =IF(ISNA(VLOOKUP(A25,LTCGE!$H$3:$I$4,2,FALSE)),C24*(1+$G$1),VLOOKUP(A25,LTCGE!$H$3:$I$4,2,FALSE)) -> 2,006,813.81 | D25: 1,003,406.91
A26: 2048 | B26: 92 | C26: =IF(ISNA(VLOOKUP(A26,LTCGE!$H$3:$I$4,2,FALSE)),C25*(1+$G$1),VLOOKUP(A26,LTCGE!$H$3:$I$4,2,FALSE)) -> 2,067,018.23 | D26: 1,033,509.11
A27: 2049 | B27: 93 | C27: =IF(ISNA(VLOOKUP(A27,LTCGE!$H$3:$I$4,2,FALSE)),C26*(1+$G$1),VLOOKUP(A27,LTCGE!$H$3:$I$4,2,FALSE)) -> 2,129,028.77 | D27: 1,064,514.39
A28: 2050 | B28: 94 | C28: =IF(ISNA(VLOOKUP(A28,LTCGE!$H$3:$I$4,2,FALSE)),C27*(1+$G$1),VLOOKUP(A28,LTCGE!$H$3:$I$4,2,FALSE)) -> 2,192,899.64 | D28: 1,096,449.82
A29: 2051 | B29: 95 | C29: =IF(ISNA(VLOOKUP(A29,LTCGE!$H$3:$I$4,2,FALSE)),C28*(1+$G$1),VLOOKUP(A29,LTCGE!$H$3:$I$4,2,FALSE)) -> 2,258,686.63 | D29: 1,129,343.31
A30: 2052 | B30: 96 | C30: =IF(ISNA(VLOOKUP(A30,LTCGE!$H$3:$I$4,2,FALSE)),C29*(1+$G$1),VLOOKUP(A30,LTCGE!$H$3:$I$4,2,FALSE)) -> 2,326,447.23 | D30: 1,163,223.61
A31: 2053 | B31: 97 | C31: =IF(ISNA(VLOOKUP(A31,LTCGE!$H$3:$I$4,2,FALSE)),C30*(1+$G$1),VLOOKUP(A31,LTCGE!$H$3:$I$4,2,FALSE)) -> 2,396,240.64 | D31: 1,198,120.32
A32: 2054 | B32: 98 | C32: =IF(ISNA(VLOOKUP(A32,LTCGE!$H$3:$I$4,2,FALSE)),C31*(1+$G$1),VLOOKUP(A32,LTCGE!$H$3:$I$4,2,FALSE)) -> 2,468,127.86 | D32: 1,234,063.93
A33: 2055 | B33: 99 | C33: =IF(ISNA(VLOOKUP(A33,LTCGE!$H$3:$I$4,2,FALSE)),C32*(1+$G$1),VLOOKUP(A33,LTCGE!$H$3:$I$4,2,FALSE)) -> 2,542,171.70 | D33: 1,271,085.85
A34: 2056 | B34: 100 | C34: =IF(ISNA(VLOOKUP(A34,LTCGE!$H$3:$I$4,2,FALSE)),C33*(1+$G$1),VLOOKUP(A34,LTCGE!$H$3:$I$4,2,FALSE)) -> 2,618,436.85 | D34: 1,309,218.42
A35: 2057 | B35: 101 | C35: =IF(ISNA(VLOOKUP(A35,LTCGE!$H$3:$I$4,2,FALSE)),C34*(1+$G$1),VLOOKUP(A35,LTCGE!$H$3:$I$4,2,FALSE)) -> 2,696,989.95 | D35: 1,348,494.98
A36: =+A35+1 -> 2058 | B36: 102 | C36: =IF(ISNA(VLOOKUP(A36,LTCGE!$H$3:$I$4,2,FALSE)),C35*(1+$G$1),VLOOKUP(A36,LTCGE!$H$3:$I$4,2,FALSE)) -> 2,777,899.65 | D36: 1,388,949.83
A37: 2059 | B37: 103 | C37: =IF(ISNA(VLOOKUP(A37,LTCGE!$H$3:$I$4,2,FALSE)),C36*(1+$G$1),VLOOKUP(A37,LTCGE!$H$3:$I$4,2,FALSE)) -> 2,861,236.64 | D37: 1,430,618.32
A38: 2060 | B38: 104 | C38: =IF(ISNA(VLOOKUP(A38,LTCGE!$H$3:$I$4,2,FALSE)),C37*(1+$G$1),VLOOKUP(A38,LTCGE!$H$3:$I$4,2,FALSE)) -> 2,947,073.74 | D38: 1,473,536.87
A39: 2061 | B39: 105 | C39: =IF(ISNA(VLOOKUP(A39,LTCGE!$H$3:$I$4,2,FALSE)),C38*(1+$G$1),VLOOKUP(A39,LTCGE!$H$3:$I$4,2,FALSE)) -> 3,035,485.95 | D39: 1,517,742.98
A40: 2062 | B40: 106 | C40: =IF(ISNA(VLOOKUP(A40,LTCGE!$H$3:$I$4,2,FALSE)),C39*(1+$G$1),VLOOKUP(A40,LTCGE!$H$3:$I$4,2,FALSE)) -> 3,126,550.53 | D40: 1,563,275.27
A41: 2063 | B41: 107 | C41: =IF(ISNA(VLOOKUP(A41,LTCGE!$H$3:$I$4,2,FALSE)),C40*(1+$G$1),VLOOKUP(A41,LTCGE!$H$3:$I$4,2,FALSE)) -> 3,220,347.05 | D41: 1,610,173.52
A42: 2064 | B42: 108 | C42: =IF(ISNA(VLOOKUP(A42,LTCGE!$H$3:$I$4,2,FALSE)),C41*(1+$G$1),VLOOKUP(A42,LTCGE!$H$3:$I$4,2,FALSE)) -> 3,316,957.46 | D42: 1,658,478.73
A43: 2065 | B43: 109 | C43: =IF(ISNA(VLOOKUP(A43,LTCGE!$H$3:$I$4,2,FALSE)),C42*(1+$G$1),VLOOKUP(A43,LTCGE!$H$3:$I$4,2,FALSE)) -> 3,416,466.18 | D43: 1,708,233.09
A44: 2066 | B44: 110 | C44: =IF(ISNA(VLOOKUP(A44,LTCGE!$H$3:$I$4,2,FALSE)),C43*(1+$G$1),VLOOKUP(A44,LTCGE!$H$3:$I$4,2,FALSE)) -> 3,518,960.17 | D44: 1,759,480.08
A45: 2067 | B45: 111 | C45: =IF(ISNA(VLOOKUP(A45,LTCGE!$H$3:$I$4,2,FALSE)),C44*(1+$G$1),VLOOKUP(A45,LTCGE!$H$3:$I$4,2,FALSE)) -> 3,624,528.97 | D45: 1,812,264.49
A46: 2068 | B46: 112 | C46: =IF(ISNA(VLOOKUP(A46,LTCGE!$H$3:$I$4,2,FALSE)),C45*(1+$G$1),VLOOKUP(A46,LTCGE!$H$3:$I$4,2,FALSE)) -> 3,733,264.84 | D46: 1,866,632.42
A47: 2069 | B47: 113 | C47: =IF(ISNA(VLOOKUP(A47,LTCGE!$H$3:$I$4,2,FALSE)),C46*(1+$G$1),VLOOKUP(A47,LTCGE!$H$3:$I$4,2,FALSE)) -> 3,845,262.79 | D47: 1,922,631.39
A48: 2070 | B48: 114 | C48: =IF(ISNA(VLOOKUP(A48,LTCGE!$H$3:$I$4,2,FALSE)),C47*(1+$G$1),VLOOKUP(A48,LTCGE!$H$3:$I$4,2,FALSE)) -> 3,960,620.67 | D48: 1,980,310.34
A49: 2071 | B49: 115 | C49: =IF(ISNA(VLOOKUP(A49,LTCGE!$H$3:$I$4,2,FALSE)),C48*(1+$G$1),VLOOKUP(A49,LTCGE!$H$3:$I$4,2,FALSE)) -> 4,079,439.29 | D49: 2,039,719.65
A50: 2072 | B50: 116 | C50: =IF(ISNA(VLOOKUP(A50,LTCGE!$H$3:$I$4,2,FALSE)),C49*(1+$G$1),VLOOKUP(A50,LTCGE!$H$3:$I$4,2,FALSE)) -> 4,201,822.47 | D50: 2,100,911.24
A51: 2073 | B51: 117 | C51: =IF(ISNA(VLOOKUP(A51,LTCGE!$H$3:$I$4,2,FALSE)),C50*(1+$G$1),VLOOKUP(A51,LTCGE!$H$3:$I$4,2,FALSE)) -> 4,327,877.15 | D51: 2,163,938.57
A52: =+A51+1 -> 2074 | B52: 118 | C52: =IF(ISNA(VLOOKUP(A52,LTCGE!$H$3:$I$4,2,FALSE)),C51*(1+$G$1),VLOOKUP(A52,LTCGE!$H$3:$I$4,2,FALSE)) -> 4,457,713.46 | D52: 2,228,856.73
A53: 2075 | B53: 119 | C53: =IF(ISNA(VLOOKUP(A53,LTCGE!$H$3:$I$4,2,FALSE)),C52*(1+$G$1),VLOOKUP(A53,LTCGE!$H$3:$I$4,2,FALSE)) -> 4,591,444.86 | D53: 2,295,722.43
A54: 2076 | B54: 120 | C54: =IF(ISNA(VLOOKUP(A54,LTCGE!$H$3:$I$4,2,FALSE)),C53*(1+$G$1),VLOOKUP(A54,LTCGE!$H$3:$I$4,2,FALSE)) -> 4,729,188.21 | D54: 2,364,594.11
A55: 2077 | B55: 121 | C55: =IF(ISNA(VLOOKUP(A55,LTCGE!$H$3:$I$4,2,FALSE)),C54*(1+$G$1),VLOOKUP(A55,LTCGE!$H$3:$I$4,2,FALSE)) -> 4,871,063.86 | D55: 2,435,531.93
A56: 2078 | B56: 122 | C56: =IF(ISNA(VLOOKUP(A56,LTCGE!$H$3:$I$4,2,FALSE)),C55*(1+$G$1),VLOOKUP(A56,LTCGE!$H$3:$I$4,2,FALSE)) -> 5,017,195.77 | D56: 2,508,597.89
A57: 2079 | B57: 123 | C57: =IF(ISNA(VLOOKUP(A57,LTCGE!$H$3:$I$4,2,FALSE)),C56*(1+$G$1),VLOOKUP(A57,LTCGE!$H$3:$I$4,2,FALSE)) -> 5,167,711.65 | D57: 2,583,855.82
A58: 2080 | B58: 124 | C58: =IF(ISNA(VLOOKUP(A58,LTCGE!$H$3:$I$4,2,FALSE)),C57*(1+$G$1),VLOOKUP(A58,LTCGE!$H$3:$I$4,2,FALSE)) -> 5,322,742.99 | D58: 2,661,371.50
A59: 2081 | B59: 125 | C59: =IF(ISNA(VLOOKUP(A59,LTCGE!$H$3:$I$4,2,FALSE)),C58*(1+$G$1),VLOOKUP(A59,LTCGE!$H$3:$I$4,2,FALSE)) -> 5,482,425.28 | D59: 2,741,212.64
A60: 2082 | B60: 126 | C60: =IF(ISNA(VLOOKUP(A60,LTCGE!$H$3:$I$4,2,FALSE)),C59*(1+$G$1),VLOOKUP(A60,LTCGE!$H$3:$I$4,2,FALSE)) -> 5,646,898.04 | D60: 2,823,449.02
A61: 2083 | B61: 127 | C61: =IF(ISNA(VLOOKUP(A61,LTCGE!$H$3:$I$4,2,FALSE)),C60*(1+$G$1),VLOOKUP(A61,LTCGE!$H$3:$I$4,2,FALSE)) -> 5,816,304.98 | D61: 2,908,152.49
A62: 2084 | B62: 128 | C62: =IF(ISNA(VLOOKUP(A62,LTCGE!$H$3:$I$4,2,FALSE)),C61*(1+$G$1),VLOOKUP(A62,LTCGE!$H$3:$I$4,2,FALSE)) -> 5,990,794.13 | D62: 2,995,397.07
A63: 2085 | B63: 129 | C63: =IF(ISNA(VLOOKUP(A63,LTCGE!$H$3:$I$4,2,FALSE)),C62*(1+$G$1),VLOOKUP(A63,LTCGE!$H$3:$I$4,2,FALSE)) -> 6,170,517.96 | D63: 3,085,258.98
A64: 2086 | B64: 130 | C64: =IF(ISNA(VLOOKUP(A64,LTCGE!$H$3:$I$4,2,FALSE)),C63*(1+$G$1),VLOOKUP(A64,LTCGE!$H$3:$I$4,2,FALSE)) -> 6,355,633.50 | D64: 3,177,816.75
A65: 2087 | B65: 131 | C65: =IF(ISNA(VLOOKUP(A65,LTCGE!$H$3:$I$4,2,FALSE)),C64*(1+$G$1),VLOOKUP(A65,LTCGE!$H$3:$I$4,2,FALSE)) -> 6,546,302.50 | D65: 3,273,151.25
A66: 2088 | B66: 132 | C66: =IF(ISNA(VLOOKUP(A66,LTCGE!$H$3:$I$4,2,FALSE)),C65*(1+$G$1),VLOOKUP(A66,LTCGE!$H$3:$I$4,2,FALSE)) -> 6,742,691.58 | D66: 3,371,345.79
A67: 2089 | B67: 133 | C67: =IF(ISNA(VLOOKUP(A67,LTCGE!$H$3:$I$4,2,FALSE)),C66*(1+$G$1),VLOOKUP(A67,LTCGE!$H$3:$I$4,2,FALSE)) -> 6,944,972.32 | D67: =+C67*50% -> 3,472,486.16
A68: =+A67+1 -> 2090 | B68: 134 | C68: =IF(ISNA(VLOOKUP(A68,LTCGE!$H$3:$I$4,2,FALSE)),C67*(1+$G$1),VLOOKUP(A68,LTCGE!$H$3:$I$4,2,FALSE)) -> 7,153,321.49 | D68: 3,576,660.75
A69: 2091 | B69: 135 | C69: =IF(ISNA(VLOOKUP(A69,LTCGE!$H$3:$I$4,2,FALSE)),C68*(1+$G$1),VLOOKUP(A69,LTCGE!$H$3:$I$4,2,FALSE)) -> 7,367,921.14 | D69: 3,683,960.57
A70: 2092 | B70: 136 | C70: =IF(ISNA(VLOOKUP(A70,LTCGE!$H$3:$I$4,2,FALSE)),C69*(1+$G$1),VLOOKUP(A70,LTCGE!$H$3:$I$4,2,FALSE)) -> 7,588,958.77 | D70: 3,794,479.39
A71: 2093 | B71: 137 | C71: =IF(ISNA(VLOOKUP(A71,LTCGE!$H$3:$I$4,2,FALSE)),C70*(1+$G$1),VLOOKUP(A71,LTCGE!$H$3:$I$4,2,FALSE)) -> 7,816,627.54 | D71: 3,908,313.77
A72: 2094 | B72: 138 | C72: =IF(ISNA(VLOOKUP(A72,LTCGE!$H$3:$I$4,2,FALSE)),C71*(1+$G$1),VLOOKUP(A72,LTCGE!$H$3:$I$4,2,FALSE)) -> 8,051,126.36 | D72: 4,025,563.18
A73: 2095 | B73: 139 | C73: =IF(ISNA(VLOOKUP(A73,LTCGE!$H$3:$I$4,2,FALSE)),C72*(1+$G$1),VLOOKUP(A73,LTCGE!$H$3:$I$4,2,FALSE)) -> 8,292,660.15 | D73: 4,146,330.08
A74: 2096 | B74: 140 | C74: =IF(ISNA(VLOOKUP(A74,LTCGE!$H$3:$I$4,2,FALSE)),C73*(1+$G$1),VLOOKUP(A74,LTCGE!$H$3:$I$4,2,FALSE)) -> 8,541,439.96 | D74: 4,270,719.98
A75: 2097 | B75: 141 | C75: =IF(ISNA(VLOOKUP(A75,LTCGE!$H$3:$I$4,2,FALSE)),C74*(1+$G$1),VLOOKUP(A75,LTCGE!$H$3:$I$4,2,FALSE)) -> 8,797,683.16 | D75: 4,398,841.58
A76: 2098 | B76: 142 | C76: =IF(ISNA(VLOOKUP(A76,LTCGE!$H$3:$I$4,2,FALSE)),C75*(1+$G$1),VLOOKUP(A76,LTCGE!$H$3:$I$4,2,FALSE)) -> 9,061,613.65 | D76: 4,530,806.83
A77: 2099 | B77: 143 | C77: =IF(ISNA(VLOOKUP(A77,LTCGE!$H$3:$I$4,2,FALSE)),C76*(1+$G$1),VLOOKUP(A77,LTCGE!$H$3:$I$4,2,FALSE)) -> 9,333,462.06 | D77: 4,666,731.03
A78: 2100 | B78: 144 | C78: =IF(ISNA(VLOOKUP(A78,LTCGE!$H$3:$I$4,2,FALSE)),C77*(1+$G$1),VLOOKUP(A78,LTCGE!$H$3:$I$4,2,FALSE)) -> 9,613,465.92 | D78: 4,806,732.96
A79: 2101 | B79: 145 | C79: =IF(ISNA(VLOOKUP(A79,LTCGE!$H$3:$I$4,2,FALSE)),C78*(1+$G$1),VLOOKUP(A79,LTCGE!$H$3:$I$4,2,FALSE)) -> 9,901,869.90 | D79: 4,950,934.95
A80: 2102 | B80: 146 | C80: =IF(ISNA(VLOOKUP(A80,LTCGE!$H$3:$I$4,2,FALSE)),C79*(1+$G$1),VLOOKUP(A80,LTCGE!$H$3:$I$4,2,FALSE)) -> 10,198,926.00 | D80: 5,099,463.00
A81: 2103 | B81: 147 | C81: =IF(ISNA(VLOOKUP(A81,LTCGE!$H$3:$I$4,2,FALSE)),C80*(1+$G$1),VLOOKUP(A81,LTCGE!$H$3:$I$4,2,FALSE)) -> 10,504,893.78 | D81: 5,252,446.89
A82: 2104 | B82: 148 | C82: =IF(ISNA(VLOOKUP(A82,LTCGE!$H$3:$I$4,2,FALSE)),C81*(1+$G$1),VLOOKUP(A82,LTCGE!$H$3:$I$4,2,FALSE)) -> 10,820,040.59 | D82: 5,410,020.29
A83: 2105 | B83: 149 | C83: =IF(ISNA(VLOOKUP(A83,LTCGE!$H$3:$I$4,2,FALSE)),C82*(1+$G$1),VLOOKUP(A83,LTCGE!$H$3:$I$4,2,FALSE)) -> 11,144,641.81 | D83: 5,572,320.90
A84: =+A83+1 -> 2106 | B84: 150 | C84: =IF(ISNA(VLOOKUP(A84,LTCGE!$H$3:$I$4,2,FALSE)),C83*(1+$G$1),VLOOKUP(A84,LTCGE!$H$3:$I$4,2,FALSE)) -> 11,478,981.06 | D84: 5,739,490.53
A85: 2107 | B85: 151 | C85: =IF(ISNA(VLOOKUP(A85,LTCGE!$H$3:$I$4,2,FALSE)),C84*(1+$G$1),VLOOKUP(A85,LTCGE!$H$3:$I$4,2,FALSE)) -> 11,823,350.49 | D85: 5,911,675.25
A86: 2108 | B86: 152 | C86: =IF(ISNA(VLOOKUP(A86,LTCGE!$H$3:$I$4,2,FALSE)),C85*(1+$G$1),VLOOKUP(A86,LTCGE!$H$3:$I$4,2,FALSE)) -> 12,178,051.01 | D86: 6,089,025.50
A87: 2109 | B87: 153 | C87: =IF(ISNA(VLOOKUP(A87,LTCGE!$H$3:$I$4,2,FALSE)),C86*(1+$G$1),VLOOKUP(A87,LTCGE!$H$3:$I$4,2,FALSE)) -> 12,543,392.54 | D87: 6,271,696.27
A88: 2110 | B88: 154 | C88: =IF(ISNA(VLOOKUP(A88,LTCGE!$H$3:$I$4,2,FALSE)),C87*(1+$G$1),VLOOKUP(A88,LTCGE!$H$3:$I$4,2,FALSE)) -> 12,919,694.31 | D88: 6,459,847.16
A89: 2111 | B89: 155 | C89: =IF(ISNA(VLOOKUP(A89,LTCGE!$H$3:$I$4,2,FALSE)),C88*(1+$G$1),VLOOKUP(A89,LTCGE!$H$3:$I$4,2,FALSE)) -> 13,307,285.14 | D89: 6,653,642.57
A90: 2112 | B90: 156 | C90: =IF(ISNA(VLOOKUP(A90,LTCGE!$H$3:$I$4,2,FALSE)),C89*(1+$G$1),VLOOKUP(A90,LTCGE!$H$3:$I$4,2,FALSE)) -> 13,706,503.70 | D90: 6,853,251.85
A91: 2113 | B91: 157 | C91: =IF(ISNA(VLOOKUP(A91,LTCGE!$H$3:$I$4,2,FALSE)),C90*(1+$G$1),VLOOKUP(A91,LTCGE!$H$3:$I$4,2,FALSE)) -> 14,117,698.81 | D91: 7,058,849.40
A92: 2114 | B92: 158 | C92: =IF(ISNA(VLOOKUP(A92,LTCGE!$H$3:$I$4,2,FALSE)),C91*(1+$G$1),VLOOKUP(A92,LTCGE!$H$3:$I$4,2,FALSE)) -> 14,541,229.77 | D92: 7,270,614.89
A93: 2115 | B93: 159 | C93: =IF(ISNA(VLOOKUP(A93,LTCGE!$H$3:$I$4,2,FALSE)),C92*(1+$G$1),VLOOKUP(A93,LTCGE!$H$3:$I$4,2,FALSE)) -> 14,977,466.67 | D93: 7,488,733.33
A94: 2116 | B94: 160 | C94: =IF(ISNA(VLOOKUP(A94,LTCGE!$H$3:$I$4,2,FALSE)),C93*(1+$G$1),VLOOKUP(A94,LTCGE!$H$3:$I$4,2,FALSE)) -> 15,426,790.67 | D94: 7,713,395.33
A95: 2117 | B95: 161 | C95: =IF(ISNA(VLOOKUP(A95,LTCGE!$H$3:$I$4,2,FALSE)),C94*(1+$G$1),VLOOKUP(A95,LTCGE!$H$3:$I$4,2,FALSE)) -> 15,889,594.39 | D95: 7,944,797.19
A96: 2118 | B96: 162 | C96: =IF(ISNA(VLOOKUP(A96,LTCGE!$H$3:$I$4,2,FALSE)),C95*(1+$G$1),VLOOKUP(A96,LTCGE!$H$3:$I$4,2,FALSE)) -> 16,366,282.22 | D96: 8,183,141.11
A97: 2119 | B97: 163 | C97: =IF(ISNA(VLOOKUP(A97,LTCGE!$H$3:$I$4,2,FALSE)),C96*(1+$G$1),VLOOKUP(A97,LTCGE!$H$3:$I$4,2,FALSE)) -> 16,857,270.69 | D97: 8,428,635.34
A98: 2120 | B98: 164 | C98: =IF(ISNA(VLOOKUP(A98,LTCGE!$H$3:$I$4,2,FALSE)),C97*(1+$G$1),VLOOKUP(A98,LTCGE!$H$3:$I$4,2,FALSE)) -> 17,362,988.81 | D98: 8,681,494.40
A99: 2121 | B99: 165 | C99: =IF(ISNA(VLOOKUP(A99,LTCGE!$H$3:$I$4,2,FALSE)),C98*(1+$G$1),VLOOKUP(A99,LTCGE!$H$3:$I$4,2,FALSE)) -> 17,883,878.47 | D99: 8,941,939.23
A100: =+A99+1 -> 2122 | B100: 166 | C100: =IF(ISNA(VLOOKUP(A100,LTCGE!$H$3:$I$4,2,FALSE)),C99*(1+$G$1),VLOOKUP(A100,LTCGE!$H$3:$I$4,2,FALSE)) -> 18,420,394.82 | D100: 9,210,197.41
A101: 2123 | B101: 167 | C101: =IF(ISNA(VLOOKUP(A101,LTCGE!$H$3:$I$4,2,FALSE)),C100*(1+$G$1),VLOOKUP(A101,LTCGE!$H$3:$I$4,2,FALSE)) -> 18,973,006.67 | D101: 9,486,503.33

Sheet List French (hidden)
A1: Capital gains inclusion factor | B1: 50.00%
A3: Province | B3: Estate tax
A5: AB | B5: =+'Estate tax rates French'!H7 -> 525.00 | C5: Alberta | D5: =B5 -> 525.00
A6: BC | B6: =+'Estate tax rates French'!H12 -> 33,390.00 | C6: British Columbia | D6: =B6 -> 33,390.00
A7: MB | B7: =+'Estate tax rates French'!H15 -> 0 | C7: Manitoba | D7: 0
A8: NB | B8: =+'Estate tax rates French'!H22 -> 12,050.00 | C8: New Brunswick | D8: 12,050.00
A9: NL | B9: =+'Estate tax rates French'!H26 -> 14,508.60 | C9: Newfoundland & Labrador | D9: 14,508.60
A10: NT | B10: =+'Estate tax rates French'!H33 -> 435.00 | C10: Northwest Territories | D10: 435.00
A11: NS | B11: =+'Estate tax rates French'!H40 -> 40,157.15 | C11: Nova Scotia | D11: 40,157.15
A12: NU | B12: =+'Estate tax rates French'!H47 -> 425.00 | C12: Nunavut | D12: 425.00
A13: ON | B13: =+'Estate tax rates French'!H51 -> 35,400.00 | C13: Ontario | D13: 35,400.00
A14: PE | B14: =+'Estate tax rates French'!H58 -> 9,640.00 | C14: Prince Edward Island | D14: 9,640.00
A15: QC | B15: =+'Estate tax rates French'!H61 -> 230.00 | C15: Quebec | D15: 230.00
A16: SK | B16: =+'Estate tax rates French'!H65 -> 17,070.00 | C16: Saskatchewan | D16: 17,070.00
A17: YT | B17: =+'Estate tax rates French'!H69 -> 140.00 | C17: Yukon | D17: 140.00
A19: Data validation for beneficiary designation
A20: Yes | B20: Oui
A21: No | B21: Non
A23: Investment rate of return
A25: 0.25%
A26: =+A25+0.25% -> 0.50%
A27: =+A26+0.25% -> 0.75%
A28: 1.00%
A29: 1.25%
A30: 1.50%
A31: 1.75%
A32: 2.00%
A33: 2.25%
A34: 2.50%
A35: 2.75%
A36: 3.00%
A37: 3.25%
A38: 3.50%
A39: 3.75%
A40: 4.00%
A41: 4.25%
A42: 4.50%
A43: 4.75%
A44: 5.00%
A45: 5.25%
A46: 5.50%
A47: 5.75%
A48: 6.00%
A49: 6.25%
A50: 6.50%
A51: 6.75%
A52: 7.00%
A53: 7.25%
A54: 7.50%
A55: 7.75%
A56: 8.00%
A57: 8.25%
A58: 8.50%
A59: 8.75%
A60: 9.00%
A61: 9.25%
A62: 9.50%
A63: 9.75%
A64: 10.00%
A65: 10.25%
A66: 10.50%
A67: 10.75%
A68: 11.00%
A69: 11.25%
A70: 11.50%
A71: 11.75%
A72: 12.00%

Sheet RRIF (hidden)
A2: Age on January 1st | B2: RRIF factor | C2: Value on January 1st | D2: Minimum withdrawal | E2: Annual growth | F2: Cl.bal.
A4: 71 | B4: 0.0528 | C4: =+IF(Input!$AG$28<72,+FV(Input!$AY$42,71-Input!$AG$28,-Input!AM42,-Input!AS42,1),0) -> 578,664 | D4: =+C4*B4 -> 30,553 | E4: =+(C4-D4)*Input!$AY$44 -> 0 | F4: =+C4-D4+E4 -> 548,111
A5: =+A4+1 -> 72 | B5: 0.0540 | C5: =+IF(Input!$AG$28=RRIF!A5,Input!$AS$44,0)+F4 -> 548,111 | D5: =+C5*B5 -> 29,598 | E5: =+(C5-D5)*Input!$AY$44 -> 0 | F5: =+C5-D5+E5 -> 518,513
A6: =+A5+1 -> 73 | B6: 0.0553 | C6: =+IF(Input!$AG$28=RRIF!A6,Input!$AS$44,0)+F5 -> 518,513 | D6: 28,674 | E6: =+(C6-D6)*Input!$AY$44 -> 0 | F6: =+C6-D6 -> 489,839
A7: 74 | B7: 0.0567 | C7: =+IF(Input!$AG$28=RRIF!A7,Input!$AS$44,0)+F6 -> 489,839 | D7: 27,774 | E7: =+(C7-D7)*Input!$AY$44 -> 0 | F7: 462,065
A8: 75 | B8: 0.0582 | C8: =+IF(Input!$AG$28=RRIF!A8,Input!$AS$44,0)+F7 -> 462,065 | D8: 26,892 | E8: =+(C8-D8)*Input!$AY$44 -> 0 | F8: 435,173
A9: 76 | B9: 0.0598 | C9: =+IF(Input!$AG$28=RRIF!A9,Input!$AS$44,0)+F8 -> 435,173 | D9: 26,023 | E9: =+(C9-D9)*Input!$AY$44 -> 0 | F9: 409,150
A10: 77 | B10: 0.0617 | C10: =+IF(Input!$AG$28=RRIF!A10,Input!$AS$44,0)+F9 -> 409,150 | D10: 25,245 | E10: =+(C10-D10)*Input!$AY$44 -> 0 | F10: 383,905
A11: 78 | B11: 0.0636 | C11: =+IF(Input!$AG$28=RRIF!A11,Input!$AS$44,0)+F10 -> 383,905 | D11: 24,416 | E11: =+(C11-D11)*Input!$AY$44 -> 0 | F11: 359,489
A12: 79 | B12: 0.0658 | C12: =+IF(Input!$AG$28=RRIF!A12,Input!$AS$44,0)+F11 -> 359,489 | D12: 23,654 | E12: =+(C12-D12)*Input!$AY$44 -> 0 | F12: 335,834
A13: 80 | B13: 0.0682 | C13: =+IF(Input!$AG$28=RRIF!A13,Input!$AS$44,0)+F12 -> 335,834 | D13: 22,904 | E13: =+(C13-D13)*Input!$AY$44 -> 0 | F13: 312,931
A14: 81 | B14: 0.0708 | C14: =+IF(Input!$AG$28=RRIF!A14,Input!$AS$44,0)+F13 -> 312,931 | D14: 22,155 | E14: =+(C14-D14)*Input!$AY$44 -> 0 | F14: 290,775
A15: 82 | B15: 0.0738 | C15: =+IF(Input!$AG$28=RRIF!A15,Input!$AS$44,0)+F14 -> 290,775 | D15: 21,459 | E15: =+(C15-D15)*Input!$AY$44 -> 0 | F15: 269,316
A16: 83 | B16: 0.0771 | C16: =+IF(Input!$AG$28=RRIF!A16,Input!$AS$44,0)+F15 -> 269,316 | D16: 20,764 | E16: =+(C16-D16)*Input!$AY$44 -> 0 | F16: 248,552
A17: 84 | B17: 0.0808 | C17: =+IF(Input!$AG$28=RRIF!A17,Input!$AS$44,0)+F16 -> 248,552 | D17: 20,083 | E17: =+(C17-D17)*Input!$AY$44 -> 0 | F17: 228,469
A18: 85 | B18: 0.0851 | C18: =+IF(Input!$AG$28=RRIF!A18,Input!$AS$44,0)+F17 -> 228,469 | D18: 19,443 | E18: =+(C18-D18)*Input!$AY$44 -> 0 | F18: 209,026
A19: 86 | B19: 0.0899 | C19: =+IF(Input!$AG$28=RRIF!A19,Input!$AS$44,0)+F18 -> 209,026 | D19: 18,791 | E19: =+(C19-D19)*Input!$AY$44 -> 0 | F19: 190,235
A20: 87 | B20: 0.0955 | C20: =+IF(Input!$AG$28=RRIF!A20,Input!$AS$44,0)+F19 -> 190,235 | D20: 18,167 | E20: =+(C20-D20)*Input!$AY$44 -> 0 | F20: 172,067
A21: 88 | B21: 0.1021 | C21: =+IF(Input!$AG$28=RRIF!A21,Input!$AS$44,0)+F20 -> 172,067 | D21: 17,568 | E21: =+(C21-D21)*Input!$AY$44 -> 0 | F21: 154,499
A22: 89 | B22: 0.1099 | C22: =+IF(Input!$AG$28=RRIF!A22,Input!$AS$44,0)+F21 -> 154,499 | D22: 16,979 | E22: =+(C22-D22)*Input!$AY$44 -> 0 | F22: 137,520
A23: 90 | B23: 0.1192 | C23: =+IF(Input!$AG$28=RRIF!A23,Input!$AS$44,0)+F22 -> 137,520 | D23: 16,392 | E23: =+(C23-D23)*Input!$AY$44 -> 0 | F23: 121,127
A24: 91 | B24: 0.1306 | C24: =+IF(Input!$AG$28=RRIF!A24,Input!$AS$44,0)+F23 -> 121,127 | D24: 15,819 | E24: =+(C24-D24)*Input!$AY$44 -> 0 | F24: 105,308
A25: 92 | B25: 0.1449 | C25: =+IF(Input!$AG$28=RRIF!A25,Input!$AS$44,0)+F24 -> 105,308 | D25: 15,259 | E25: =+(C25-D25)*Input!$AY$44 -> 0 | F25: 90,049
A26: 93 | B26: 0.1634 | C26: =+IF(Input!$AG$28=RRIF!A26,Input!$AS$44,0)+F25 -> 90,049 | D26: 14,714 | E26: =+(C26-D26)*Input!$AY$44 -> 0 | F26: 75,335
A27: 94 | B27: 0.1879 | C27: =+IF(Input!$AG$28=RRIF!A27,Input!$AS$44,0)+F26 -> 75,335 | D27: 14,155 | E27: =+(C27-D27)*Input!$AY$44 -> 0 | F27: 61,179
A28: 95 | B28: 0.2000 | C28: =+IF(Input!$AG$28=RRIF!A28,Input!$AS$44,0)+F27 -> 61,179 | D28: 12,236 | E28: =+(C28-D28)*Input!$AY$44 -> 0 | F28: 48,944
A29: 96 | B29: 0.2000 | C29: =+IF(Input!$AG$28=RRIF!A29,Input!$AS$44,0)+F28 -> 48,944 | D29: 9,789 | E29: =+(C29-D29)*Input!$AY$44 -> 0 | F29: 39,155
A30: 97 | B30: 0.2000 | C30: =+IF(Input!$AG$28=RRIF!A30,Input!$AS$44,0)+F29 -> 39,155 | D30: 7,831 | E30: =+(C30-D30)*Input!$AY$44 -> 0 | F30: 31,324
A31: 98 | B31: 0.2000 | C31: =+IF(Input!$AG$28=RRIF!A31,Input!$AS$44,0)+F30 -> 31,324 | D31: 6,265 | E31: =+(C31-D31)*Input!$AY$44 -> 0 | F31: 25,059
A32: 99 | B32: 0.2000 | C32: =+IF(Input!$AG$28=RRIF!A32,Input!$AS$44,0)+F31 -> 25,059 | D32: 5,012 | E32: =+(C32-D32)*Input!$AY$44 -> 0 | F32: 20,047
A33: 100 | B33: 0.2000 | C33: =+IF(Input!$AG$28=RRIF!A33,Input!$AS$44,0)+F32 -> 20,047 | D33: 4,009 | E33: =+(C33-D33)*Input!$AY$44 -> 0 | F33: 16,038
A34: =+A33+1 -> 101 | B34: 0.2000 | C34: =+IF(Input!$AG$28=RRIF!A34,Input!$AS$44,0)+F33 -> 16,038 | D34: =+C34*B34 -> 3,208 | E34: =+(C34-D34)*Input!$AY$44 -> 0 | F34: =+C34-D34 -> 12,830
A35: 102 | B35: 0.2000 | C35: =+IF(Input!$AG$28=RRIF!A35,Input!$AS$44,0)+F34 -> 12,830 | D35: 2,566 | E35: =+(C35-D35)*Input!$AY$44 -> 0 | F35: 10,264
A36: 103 | B36: 0.2000 | C36: =+IF(Input!$AG$28=RRIF!A36,Input!$AS$44,0)+F35 -> 10,264 | D36: 2,053 | E36: =+(C36-D36)*Input!$AY$44 -> 0 | F36: 8,211
A37: 104 | B37: 0.2000 | C37: =+IF(Input!$AG$28=RRIF!A37,Input!$AS$44,0)+F36 -> 8,211 | D37: 1,642 | E37: =+(C37-D37)*Input!$AY$44 -> 0 | F37: 6,569
A38: =+A37+1 -> 105 | B38: 0.2000 | C38: =+IF(Input!$AG$28=RRIF!A38,Input!$AS$44,0)+F37 -> 6,569 | D38: =+C38*B38 -> 1,314 | E38: =+(C38-D38)*Input!$AY$44 -> 0 | F38: =+C38-D38 -> 5,255
A39: 106 | B39: 0.2000 | C39: =+IF(Input!$AG$28=RRIF!A39,Input!$AS$44,0)+F38 -> 5,255 | D39: 1,051 | E39: =+(C39-D39)*Input!$AY$44 -> 0 | F39: 4,204
A40: 107 | B40: 0.2000 | C40: =+IF(Input!$AG$28=RRIF!A40,Input!$AS$44,0)+F39 -> 4,204 | D40: 841 | E40: =+(C40-D40)*Input!$AY$44 -> 0 | F40: 3,363
A41: 108 | B41: 0.2000 | C41: =+IF(Input!$AG$28=RRIF!A41,Input!$AS$44,0)+F40 -> 3,363 | D41: 673 | E41: =+(C41-D41)*Input!$AY$44 -> 0 | F41: 2,691
A42: 109 | B42: 0.2000 | C42: =+IF(Input!$AG$28=RRIF!A42,Input!$AS$44,0)+F41 -> 2,691 | D42: 538 | E42: =+(C42-D42)*Input!$AY$44 -> 0 | F42: 2,153
A43: 110 | B43: 0.2000 | C43: =+IF(Input!$AG$28=RRIF!A43,Input!$AS$44,0)+F42 -> 2,153 | D43: 431 | E43: =+(C43-D43)*Input!$AY$44 -> 0 | F43: 1,722

Sheet RRIF French (hidden)
A2: Age on January 1st | B2: RRIF factor | C2: Value on January 1st | D2: Minimum withdrawal | E2: Annual growth | F2: Cl.bal.
A4: 71 | B4: 0.0528 | C4: =+IF(Entrée!$AG$28<72,+FV(Entrée!$BB$42,71-Entrée!$AG$28,-Entrée!AP42,-Entrée!AV42,1),0) -> 578,664 | D4: =+C4*B4 -> 30,553 | E4: =+(C4-D4)*Entrée!$BB$44 -> 0 | F4: =+C4-D4+E4 -> 548,111
A5: =+A4+1 -> 72 | B5: 0.0540 | C5: =+IF(Entrée!$AG$28='RRIF French'!A5,Entrée!$AV$44,0)+F4 -> 548,111 | D5: =+C5*B5 -> 29,598 | E5: =+(C5-D5)*Entrée!$BB$44 -> 0 | F5: =+C5-D5+E5 -> 518,513
A6: =+A5+1 -> 73 | B6: 0.0553 | C6: =+IF(Entrée!$AG$28='RRIF French'!A6,Entrée!$AV$44,0)+F5 -> 518,513 | D6: 28,674 | E6: =+(C6-D6)*Entrée!$BB$44 -> 0 | F6: =+C6-D6 -> 489,839
A7: 74 | B7: 0.0567 | C7: =+IF(Entrée!$AG$28='RRIF French'!A7,Entrée!$AV$44,0)+F6 -> 489,839 | D7: 27,774 | E7: =+(C7-D7)*Entrée!$BB$44 -> 0 | F7: 462,065
A8: 75 | B8: 0.0582 | C8: =+IF(Entrée!$AG$28='RRIF French'!A8,Entrée!$AV$44,0)+F7 -> 462,065 | D8: 26,892 | E8: =+(C8-D8)*Entrée!$BB$44 -> 0 | F8: 435,173
A9: 76 | B9: 0.0598 | C9: =+IF(Entrée!$AG$28='RRIF French'!A9,Entrée!$AV$44,0)+F8 -> 435,173 | D9: 26,023 | E9: =+(C9-D9)*Entrée!$BB$44 -> 0 | F9: 409,150
A10: 77 | B10: 0.0617 | C10: =+IF(Entrée!$AG$28='RRIF French'!A10,Entrée!$AV$44,0)+F9 -> 409,150 | D10: 25,245 | E10: =+(C10-D10)*Entrée!$BB$44 -> 0 | F10: 383,905
A11: 78 | B11: 0.0636 | C11: =+IF(Entrée!$AG$28='RRIF French'!A11,Entrée!$AV$44,0)+F10 -> 383,905 | D11: 24,416 | E11: =+(C11-D11)*Entrée!$BB$44 -> 0 | F11: 359,489
A12: 79 | B12: 0.0658 | C12: =+IF(Entrée!$AG$28='RRIF French'!A12,Entrée!$AV$44,0)+F11 -> 359,489 | D12: 23,654 | E12: =+(C12-D12)*Entrée!$BB$44 -> 0 | F12: 335,834
A13: 80 | B13: 0.0682 | C13: =+IF(Entrée!$AG$28='RRIF French'!A13,Entrée!$AV$44,0)+F12 -> 335,834 | D13: 22,904 | E13: =+(C13-D13)*Entrée!$BB$44 -> 0 | F13: 312,931
A14: 81 | B14: 0.0708 | C14: =+IF(Entrée!$AG$28='RRIF French'!A14,Entrée!$AV$44,0)+F13 -> 312,931 | D14: 22,155 | E14: =+(C14-D14)*Entrée!$BB$44 -> 0 | F14: 290,775
A15: 82 | B15: 0.0738 | C15: =+IF(Entrée!$AG$28='RRIF French'!A15,Entrée!$AV$44,0)+F14 -> 290,775 | D15: 21,459 | E15: =+(C15-D15)*Entrée!$BB$44 -> 0 | F15: 269,316
A16: 83 | B16: 0.0771 | C16: =+IF(Entrée!$AG$28='RRIF French'!A16,Entrée!$AV$44,0)+F15 -> 269,316 | D16: 20,764 | E16: =+(C16-D16)*Entrée!$BB$44 -> 0 | F16: 248,552
A17: 84 | B17: 0.0808 | C17: =+IF(Entrée!$AG$28='RRIF French'!A17,Entrée!$AV$44,0)+F16 -> 248,552 | D17: 20,083 | E17: =+(C17-D17)*Entrée!$BB$44 -> 0 | F17: 228,469
A18: 85 | B18: 0.0851 | C18: =+IF(Entrée!$AG$28='RRIF French'!A18,Entrée!$AV$44,0)+F17 -> 228,469 | D18: 19,443 | E18: =+(C18-D18)*Entrée!$BB$44 -> 0 | F18: 209,026
A19: 86 | B19: 0.0899 | C19: =+IF(Entrée!$AG$28='RRIF French'!A19,Entrée!$AV$44,0)+F18 -> 209,026 | D19: 18,791 | E19: =+(C19-D19)*Entrée!$BB$44 -> 0 | F19: 190,235
A20: 87 | B20: 0.0955 | C20: =+IF(Entrée!$AG$28='RRIF French'!A20,Entrée!$AV$44,0)+F19 -> 190,235 | D20: 18,167 | E20: =+(C20-D20)*Entrée!$BB$44 -> 0 | F20: 172,067
A21: 88 | B21: 0.1021 | C21: =+IF(Entrée!$AG$28='RRIF French'!A21,Entrée!$AV$44,0)+F20 -> 172,067 | D21: 17,568 | E21: =+(C21-D21)*Entrée!$BB$44 -> 0 | F21: 154,499
A22: 89 | B22: 0.1099 | C22: =+IF(Entrée!$AG$28='RRIF French'!A22,Entrée!$AV$44,0)+F21 -> 154,499 | D22: 16,979 | E22: =+(C22-D22)*Entrée!$BB$44 -> 0 | F22: 137,520
A23: 90 | B23: 0.1192 | C23: =+IF(Entrée!$AG$28='RRIF French'!A23,Entrée!$AV$44,0)+F22 -> 137,520 | D23: 16,392 | E23: =+(C23-D23)*Entrée!$BB$44 -> 0 | F23: 121,127
A24: 91 | B24: 0.1306 | C24: =+IF(Entrée!$AG$28='RRIF French'!A24,Entrée!$AV$44,0)+F23 -> 121,127 | D24: 15,819 | E24: =+(C24-D24)*Entrée!$BB$44 -> 0 | F24: 105,308
A25: 92 | B25: 0.1449 | C25: =+IF(Entrée!$AG$28='RRIF French'!A25,Entrée!$AV$44,0)+F24 -> 105,308 | D25: 15,259 | E25: =+(C25-D25)*Entrée!$BB$44 -> 0 | F25: 90,049
A26: 93 | B26: 0.1634 | C26: =+IF(Entrée!$AG$28='RRIF French'!A26,Entrée!$AV$44,0)+F25 -> 90,049 | D26: 14,714 | E26: =+(C26-D26)*Entrée!$BB$44 -> 0 | F26: 75,335
A27: 94 | B27: 0.1879 | C27: =+IF(Entrée!$AG$28='RRIF French'!A27,Entrée!$AV$44,0)+F26 -> 75,335 | D27: 14,155 | E27: =+(C27-D27)*Entrée!$BB$44 -> 0 | F27: 61,179
A28: 95 | B28: 0.2000 | C28: =+IF(Entrée!$AG$28='RRIF French'!A28,Entrée!$AV$44,0)+F27 -> 61,179 | D28: 12,236 | E28: =+(C28-D28)*Entrée!$BB$44 -> 0 | F28: 48,944
A29: 96 | B29: 0.2000 | C29: =+IF(Entrée!$AG$28='RRIF French'!A29,Entrée!$AV$44,0)+F28 -> 48,944 | D29: 9,789 | E29: =+(C29-D29)*Entrée!$BB$44 -> 0 | F29: 39,155
A30: 97 | B30: 0.2000 | C30: =+IF(Entrée!$AG$28='RRIF French'!A30,Entrée!$AV$44,0)+F29 -> 39,155 | D30: 7,831 | E30: =+(C30-D30)*Entrée!$BB$44 -> 0 | F30: 31,324
A31: 98 | B31: 0.2000 | C31: =+IF(Entrée!$AG$28='RRIF French'!A31,Entrée!$AV$44,0)+F30 -> 31,324 | D31: 6,265 | E31: =+(C31-D31)*Entrée!$BB$44 -> 0 | F31: 25,059
A32: 99 | B32: 0.2000 | C32: =+IF(Entrée!$AG$28='RRIF French'!A32,Entrée!$AV$44,0)+F31 -> 25,059 | D32: 5,012 | E32: =+(C32-D32)*Entrée!$BB$44 -> 0 | F32: 20,047
A33: 100 | B33: 0.2000 | C33: =+IF(Entrée!$AG$28='RRIF French'!A33,Entrée!$AV$44,0)+F32 -> 20,047 | D33: 4,009 | E33: =+(C33-D33)*Entrée!$BB$44 -> 0 | F33: 16,038
A34: 101 | B34: 0.2000 | C34: =+IF(Entrée!$AG$28='RRIF French'!A34,Entrée!$AV$44,0)+F33 -> 16,038 | D34: 3,208 | E34: =+(C34-D34)*Entrée!$BB$44 -> 0 | F34: 12,830
A35: 102 | B35: 0.2000 | C35: =+IF(Entrée!$AG$28='RRIF French'!A35,Entrée!$AV$44,0)+F34 -> 12,830 | D35: 2,566 | E35: =+(C35-D35)*Entrée!$BB$44 -> 0 | F35: 10,264
A36: 103 | B36: 0.2000 | C36: =+IF(Entrée!$AG$28='RRIF French'!A36,Entrée!$AV$44,0)+F35 -> 10,264 | D36: 2,053 | E36: =+(C36-D36)*Entrée!$BB$44 -> 0 | F36: 8,211
A37: 104 | B37: 0.2000 | C37: =+IF(Entrée!$AG$28='RRIF French'!A37,Entrée!$AV$44,0)+F36 -> 8,211 | D37: 1,642 | E37: =+(C37-D37)*Entrée!$BB$44 -> 0 | F37: 6,569
A38: 105 | B38: 0.2000 | C38: =+IF(Entrée!$AG$28='RRIF French'!A38,Entrée!$AV$44,0)+F37 -> 6,569 | D38: 1,314 | E38: =+(C38-D38)*Entrée!$BB$44 -> 0 | F38: 5,255
A39: 106 | B39: 0.2000 | C39: =+IF(Entrée!$AG$28='RRIF French'!A39,Entrée!$AV$44,0)+F38 -> 5,255 | D39: 1,051 | E39: =+(C39-D39)*Entrée!$BB$44 -> 0 | F39: 4,204
A40: 107 | B40: 0.2000 | C40: =+IF(Entrée!$AG$28='RRIF French'!A40,Entrée!$AV$44,0)+F39 -> 4,204 | D40: 841 | E40: =+(C40-D40)*Entrée!$BB$44 -> 0 | F40: 3,363
A41: 108 | B41: 0.2000 | C41: =+IF(Entrée!$AG$28='RRIF French'!A41,Entrée!$AV$44,0)+F40 -> 3,363 | D41: 673 | E41: =+(C41-D41)*Entrée!$BB$44 -> 0 | F41: 2,691
A42: 109 | B42: 0.2000 | C42: =+IF(Entrée!$AG$28='RRIF French'!A42,Entrée!$AV$44,0)+F41 -> 2,691 | D42: 538 | E42: =+(C42-D42)*Entrée!$BB$44 -> 0 | F42: 2,153
A43: 110 | B43: 0.2000 | C43: =+IF(Entrée!$AG$28='RRIF French'!A43,Entrée!$AV$44,0)+F42 -> 2,153 | D43: 431 | E43: =+(C43-D43)*Entrée!$BB$44 -> 0 | F43: 1,722

Sheet Estate tax rates (hidden)
B1: Range | E1: Rate | H1: Probate fees | J1: =(Input!$BP$79-Input!$BP$101) -> 2,409,026
A2: AB | B2: 0 | C2: 10,000.00 | E2: 35.00 | H2: =+IF(AND($J$1>B2,$J$1<B3),E2,0) -> 0 | J2: https://www.alberta.ca/court-fees.aspx
B3: =+C2+0.01 -> 10,000.01 | C3: 25,000.00 | E3: 135.00 | H3: =+IF(AND($J$1>C2,$J$1<B4),E3,0) -> 0
B4: =+C3+0.01 -> 25,000.01 | C4: 125,000.00 | E4: 275.00 | H4: =+IF(AND($J$1>C3,$J$1<B5),E4,0) -> 0
B5: =+C4+0.01 -> 125,000.01 | C5: 250,000.00 | E5: 400.00 | H5: =+IF(AND(J1>C4,J1<B6),E5,0) -> 0
B6: =+C5+0.01 -> 250,000.01 | E6: 525.00 | H6: =+IF(J1>C5,E6,0) -> 525.00
H7: =SUM(H2:H6) -> 525.00
A9: BC | B9: 0 | C9: 25,000.00 | E9: 0 | H9: =+IF(AND(J1>B9,J1<B10),E9,0) -> 0 | J9: https://www.bclaws.gov.bc.ca/civix/document/id/complete/statreg/00_99004_01#section2
B10: =+C9+0.01 -> 25,000.01 | C10: 50,000.00 | E10: 6.00 | F10: per 1000 or part thereof + $200 filing fees | H10: =+IF(J1<'Estate tax rates'!B10,0,IF(AND(J1>C9,J1<B11),+(CEILING((J1-C9),1000)/1000*E10)+200,(C10-C9)/1000*E10)) -> 150.00
B11: =+C10+0.01 -> 50,000.01 | E11: 14.00 | F11: per 1000 or part thereof + $200 filing fees | H11: =+IF(J1>C10,+(CEILING((J1-C10),1000)/1000*E11)+200,0) -> 33,240.00
H12: =SUM(H9:H11) -> 33,390.00
A14: MB | E14: 0 | H14: =+E14 -> 0 | J14: https://www.manitobacourts.mb.ca/site/assets/files/1152/2020-11-06_notice_-_elimination_of_probate_charges.pdf
H15: =SUM(H14) -> 0
A17: NB | B17: 0 | C17: 5,000.00 | E17: 25.00 | H17: =+IF(AND(J1>B17,J1<B18),E17,0) -> 0 | J17: http://www.legal-info-legale.nb.ca/en/probate_of_the_will
B18: =+C17+0.01 -> 5,000.01 | C18: 10,000.00 | E18: 50.00 | H18: =+IF(AND(J1>C17,J1<B19),E18,0) -> 0 | J18: https://laws.gnb.ca/en/showfulldoc/cs/P-17.1/#anchorga:s_75
B19: =+C18+0.01 -> 10,000.01 | C19: 15,000.00 | E19: 75.00 | H19: =+IF(AND(J1>C18,J1<B20),E19,0) -> 0
B20: =+C19+0.01 -> 15,000.01 | C20: 20,000.00 | E20: 100.00 | H20: =+IF(AND(J1>C19,J1<B21),E20,0) -> 0
B21: =+C20+0.01 -> 20,000.01 | E21: 5.00 | F21: per 1000 or part thereof | H21: =+IF(J1>C20,+(CEILING(J1,1000)/1000*E21),0) -> 12,050.00
H22: =SUM(H17:H21) -> 12,050.00
A24: NL | B24: 0 | C24: 1,000.00 | E24: 60.00 | H24: =+IF(AND(J1>B24,J1<B25),E24,0) -> 0 | J24: https://www.assembly.nl.ca/legislation/sr/statutes/s13-2.htm#4_
B25: =+C24+0.01 -> 1,000.01 | E25: 0.60 | F25: per 100 or part thereof | H25: =+IF(J1>C24,+(CEILING((J1-C24),100)/100*E25)+60,0) -> 14,508.60
H26: =SUM(H24:H25) -> 14,508.60
A28: NT | B28: 0 | C28: 10,000.00 | E28: 30.00 | H28: =+IF(AND(J1>B28,J1<B29),E28,0) -> 0 | J28: https://www.justice.gov.nt.ca/en/files/legislation/financial-administration/financial-administration.r5.pdf
B29: =+C28+0.01 -> 10,000.01 | C29: 25,000.00 | E29: 110.00 | H29: =+IF(AND(J1>C28,J1<B30),E29,0) -> 0
B30: 25,000.01 | C30: 125,000.00 | E30: 215.00 | H30: =+IF(AND(J1>C29,J1<B31),E30,0) -> 0
B31: 125,000.01 | C31: 250,000.00 | E31: 325.00 | H31: =+IF(AND(J1>C30,J1<B32),E31,0) -> 0
B32: 250,000.01 | E32: 435.00 | H32: =+IF(J1>C31,E32,0) -> 435.00
H33: =SUM(H28:H32) -> 435.00
A35: NS | B35: 0 | C35: 10,000.00 | E35: 85.60 | H35: =+IF(AND(J1>B35,J1<B36),E35,0) -> 0 | J35: https://www.courts.ns.ca/Probate_Court/documents/ProbateFeesTable.08.23.16.pdf
B36: =+C35+0.01 -> 10,000.01 | C36: 25,000.00 | E36: 215.20 | H36: =+IF(AND(J1>C35,J1<B37),E36,0) -> 0
B37: 25,000.01 | C37: 50,000.00 | E37: 358.15 | H37: =+IF(AND(J1>C36,J1<B38),E37,0) -> 0
B38: 50,000.01 | C38: 100,000.00 | E38: 1,002.65 | H38: =+IF(AND(J1>C37,J1<B39),E38,0) -> 0
B39: 100,000.01 | E39: 16.95 | F39: per 1000 or part thereof + $1002.65 | H39: =+IF(J1>C38,+(CEILING((J1-C38),1000)/1000*E39)+1002.65,0) -> 40,157.15
H40: =SUM(H35:H39) -> 40,157.15
A41: Changed for 2024
A42: NU | B42: 0 | C42: 10,000.00 | E42: 30.00 | H42: =+IF(AND(J1>B42,J1<B43),E42,0) -> 0
B43: =+C42+0.01 -> 10,000.01 | C43: 25,000.00 | E43: 110.00 | H43: =+IF(AND(J1>C42,J1<B44),E43,0) -> 0
B44: 25,000.01 | C44: 125,000.00 | E44: 215.00 | H44: =+IF(AND(J1>C43,J1<B45),E44,0) -> 0
B45: 125,000.01 | C45: 250,000.00 | E45: 325.00 | H45: =+IF(AND(J1>C44,J1<B46),E45,0) -> 0
B46: 250,000.01 | E46: 425.00 | H46: =+IF(J1>C45,E46,0) -> 425.00
H47: =SUM(H42:H46) -> 425.00
A49: ON | B49: 0 | C49: 50,000.00 | E49: 0 | H49: =+IF(AND(J1>B49,J1<B50),E49,0) -> 0 | J49: https://www.ontario.ca/page/estate-administration-tax#section-3
B50: =+C49+0.01 -> 50,000.01 | E50: 15.00 | F50: per 1000 or part thereof | H50: =+IF(J1>C49,+(CEILING((J1-C49),1000)/1000*E50),0) -> 35,400.00 | J50: https://www.attorneygeneral.jus.gov.on.ca/english/estates/calculate.php
H51: =SUM(H49:H50) -> 35,400.00
A53: PE | B53: 0 | C53: 10,000.00 | E53: 50.00 | H53: =+IF(AND(J1>B53,J1<B54),E53,0) -> 0 | J53: https://www.princeedwardisland.ca/sites/default/files/legislation/P-21-Probate%20Act.pdf
B54: =+C53+0.01 -> 10,000.01 | C54: 25,000.00 | E54: 100.00 | H54: =+IF(AND(J1>C53,J1<B55),E54,0) -> 0 | J54: See page 35 & 36
B55: 25,000.01 | C55: 50,000.00 | E55: 200.00 | H55: =+IF(AND(J1>C54,J1<B56),E55,0) -> 0
B56: 50,000.01 | C56: 100,000.00 | E56: 400.00 | H56: =+IF(AND(J1>C55,J1<B57),E56,0) -> 0
B57: 100,000.01 | E57: 4.00 | F57: per 1000 or part thereof + $400 | H57: =+IF(J1>C56,+(CEILING((J1-C56),1000)/1000*E57)+400,0) -> 9,640.00
H58: =SUM(H53:H57) -> 9,640.00
A59: Changed for 2024
A60: QC | E60: 230.00 | H60: =+IF(J1>0,E60,0) -> 230.00
H61: =+H60 -> 230.00
A64: SK | E64: 7.00 | F64: per 1000 or part thereof + $200 court fees | H64: =+IF(0<J1>C63,+(CEILING(J1,1000)/1000*E64)+200,0) -> 17,070.00 | J64: https://sasklawcourts.ca/kings-bench/wills-and-estates/probating-an-estate/
H65: =SUM(H64) -> 17,070.00
A67: YT | B67: 0 | C67: 25,000.00 | E67: 0 | H67: =+IF(J1<B68,E67,0) -> 0 | J67: https://yukon.ca/sites/yukon.ca/files/jus-pgt-book-3-what-is-probate.pdf
B68: =+C67+0.01 -> 25,000.01 | E68: 140.00 | H68: =+IF(J1>C67,E68,0) -> 140.00
H69: =SUM(H67:H68) -> 140.00

Sheet Estate tax rates French (hidden)
B1: Range | E1: Rate | H1: Probate fees | J1: =(Entrée!$BT$79-Entrée!$BT$101) -> 2,409,026
A2: AB | B2: 0 | C2: 10,000.00 | E2: 35.00 | H2: =+IF(AND($J$1>B2,$J$1<B3),E2,0) -> 0 | J2: https://www.alberta.ca/court-fees.aspx
B3: =+C2+0.01 -> 10,000.01 | C3: 25,000.00 | E3: 135.00 | H3: =+IF(AND($J$1>C2,$J$1<B4),E3,0) -> 0
B4: =+C3+0.01 -> 25,000.01 | C4: 125,000.00 | E4: 275.00 | H4: =+IF(AND($J$1>C3,$J$1<B5),E4,0) -> 0
B5: =+C4+0.01 -> 125,000.01 | C5: 250,000.00 | E5: 400.00 | H5: =+IF(AND(J1>C4,J1<B6),E5,0) -> 0
B6: =+C5+0.01 -> 250,000.01 | E6: 525.00 | H6: =+IF(J1>C5,E6,0) -> 525.00
H7: =SUM(H2:H6) -> 525.00
A9: BC | B9: 0 | C9: 25,000.00 | E9: 0 | H9: =+IF(AND(J1>B9,J1<B10),E9,0) -> 0 | J9: https://www.bclaws.gov.bc.ca/civix/document/id/complete/statreg/00_99004_01#section2
B10: =+C9+0.01 -> 25,000.01 | C10: 50,000.00 | E10: 6.00 | F10: per 1000 or part thereof + $200 filing fees | H10: =+IF(J1<'Estate tax rates French'!B10,0,IF(AND(J1>C9,J1<B11),+(CEILING((J1-C9),1000)/1000*E10)+200,(C10-C9)/1000*E10)) -> 150.00
B11: =+C10+0.01 -> 50,000.01 | E11: 14.00 | F11: per 1000 or part thereof + $200 filing fees | H11: =+IF(J1>C10,+(CEILING((J1-C10),1000)/1000*E11)+200,0) -> 33,240.00
H12: =SUM(H9:H11) -> 33,390.00
A14: MB | E14: 0 | H14: =+E14 -> 0 | J14: https://www.manitobacourts.mb.ca/site/assets/files/1152/2020-11-06_notice_-_elimination_of_probate_charges.pdf
H15: =SUM(H14) -> 0
A17: NB | B17: 0 | C17: 5,000.00 | E17: 25.00 | H17: =+IF(AND(J1>B17,J1<B18),E17,0) -> 0 | J17: http://www.legal-info-legale.nb.ca/en/probate_of_the_will
B18: =+C17+0.01 -> 5,000.01 | C18: 10,000.00 | E18: 50.00 | H18: =+IF(AND(J1>C17,J1<B19),E18,0) -> 0 | J18: https://laws.gnb.ca/en/showfulldoc/cs/P-17.1/#anchorga:s_75
B19: =+C18+0.01 -> 10,000.01 | C19: 15,000.00 | E19: 75.00 | H19: =+IF(AND(J1>C18,J1<B20),E19,0) -> 0
B20: =+C19+0.01 -> 15,000.01 | C20: 20,000.00 | E20: 100.00 | H20: =+IF(AND(J1>C19,J1<B21),E20,0) -> 0
B21: =+C20+0.01 -> 20,000.01 | E21: 5.00 | F21: per 1000 or part thereof | H21: =+IF(J1>C20,+(CEILING(J1,1000)/1000*E21),0) -> 12,050.00
H22: =SUM(H17:H21) -> 12,050.00
A24: NL | B24: 0 | C24: 1,000.00 | E24: 60.00 | H24: =+IF(AND(J1>B24,J1<B25),E24,0) -> 0 | J24: https://www.assembly.nl.ca/legislation/sr/statutes/s13-2.htm#4_
B25: =+C24+0.01 -> 1,000.01 | E25: 0.60 | F25: per 100 or part thereof | H25: =+IF(J1>C24,+(CEILING((J1-C24),100)/100*E25)+60,0) -> 14,508.60
H26: =SUM(H24:H25) -> 14,508.60
A28: NT | B28: 0 | C28: 10,000.00 | E28: 30.00 | H28: =+IF(AND(J1>B28,J1<B29),E28,0) -> 0 | J28: https://www.justice.gov.nt.ca/en/files/legislation/financial-administration/financial-administration.r5.pdf
B29: =+C28+0.01 -> 10,000.01 | C29: 25,000.00 | E29: 110.00 | H29: =+IF(AND(J1>C28,J1<B30),E29,0) -> 0
B30: 25,000.01 | C30: 125,000.00 | E30: 215.00 | H30: =+IF(AND(J1>C29,J1<B31),E30,0) -> 0
B31: 125,000.01 | C31: 250,000.00 | E31: 325.00 | H31: =+IF(AND(J1>C30,J1<B32),E31,0) -> 0
B32: 250,000.01 | E32: 435.00 | H32: =+IF(J1>C31,E32,0) -> 435.00
H33: =SUM(H28:H32) -> 435.00
A35: NS | B35: 0 | C35: 10,000.00 | E35: 85.60 | H35: =+IF(AND(J1>B35,J1<B36),E35,0) -> 0 | J35: https://www.courts.ns.ca/Probate_Court/documents/ProbateFeesTable.08.23.16.pdf
B36: =+C35+0.01 -> 10,000.01 | C36: 25,000.00 | E36: 215.20 | H36: =+IF(AND(J1>C35,J1<B37),E36,0) -> 0
B37: 25,000.01 | C37: 50,000.00 | E37: 358.15 | H37: =+IF(AND(J1>C36,J1<B38),E37,0) -> 0
B38: 50,000.01 | C38: 100,000.00 | E38: 1,002.65 | H38: =+IF(AND(J1>C37,J1<B39),E38,0) -> 0
B39: 100,000.01 | E39: 16.95 | F39: per 1000 or part thereof + $1002.65 | H39: =+IF(J1>C38,+(CEILING((J1-C38),1000)/1000*E39)+1002.65,0) -> 40,157.15
H40: =SUM(H35:H39) -> 40,157.15
A41: Changed for 2024
A42: NU | B42: 0 | C42: 10,000.00 | E42: 30.00 | H42: =+IF(AND(J1>B42,J1<B43),E42,0) -> 0
B43: 10,000.01 | C43: 25,000.00 | E43: 110.00 | H43: =+IF(AND(J1>C42,J1<B44),E43,0) -> 0
B44: 25,000.01 | C44: 125,000.00 | E44: 215.00 | H44: =+IF(AND(J1>C43,J1<B45),E44,0) -> 0
B45: 125,000.01 | C45: 250,000.00 | E45: 325.00 | H45: =+IF(AND(J1>C44,J1<B46),E45,0) -> 0
B46: 250,000.01 | E46: 425.00 | H46: =+IF(J1>C45,E46,0) -> 425.00
H47: =SUM(H42:H46) -> 425.00
A49: ON | B49: 0 | C49: 50,000.00 | E49: 0 | H49: =+IF(AND(J1>B49,J1<B50),E49,0) -> 0 | J49: https://www.ontario.ca/page/estate-administration-tax#section-3
B50: =+C49+0.01 -> 50,000.01 | E50: 15.00 | F50: per 1000 or part thereof | H50: =+IF(J1>C49,+(CEILING((J1-C49),1000)/1000*E50),0) -> 35,400.00 | J50: https://www.attorneygeneral.jus.gov.on.ca/english/estates/calculate.php
H51: =SUM(H49:H50) -> 35,400.00
A53: PE | B53: 0 | C53: 10,000.00 | E53: 50.00 | H53: =+IF(AND(J1>B53,J1<B54),E53,0) -> 0 | J53: https://www.princeedwardisland.ca/sites/default/files/legislation/P-21-Probate%20Act.pdf
B54: =+C53+0.01 -> 10,000.01 | C54: 25,000.00 | E54: 100.00 | H54: =+IF(AND(J1>C53,J1<B55),E54,0) -> 0 | J54: See page 35 & 36
B55: 25,000.01 | C55: 50,000.00 | E55: 200.00 | H55: =+IF(AND(J1>C54,J1<B56),E55,0) -> 0
B56: 50,000.01 | C56: 100,000.00 | E56: 400.00 | H56: =+IF(AND(J1>C55,J1<B57),E56,0) -> 0
B57: 100,000.01 | E57: 4.00 | F57: per 1000 or part thereof + $400 | H57: =+IF(J1>C56,+(CEILING((J1-C56),1000)/1000*E57)+400,0) -> 9,640.00
H58: =SUM(H53:H57) -> 9,640.00
A59: Changed for 2024
A60: QC | E60: 230.00 | H60: =+IF(J1>0,E60,0) -> 230.00
H61: =+H60 -> 230.00
A64: SK | E64: 7.00 | F64: per 1000 or part thereof + $200 court fees | H64: =+IF(0<J1>C63,+(CEILING(J1,1000)/1000*E64)+200,0) -> 17,070.00 | J64: https://sasklawcourts.ca/kings-bench/wills-and-estates/probating-an-estate/
H65: =SUM(H64) -> 17,070.00
A67: YT | B67: 0 | C67: 25,000.00 | E67: 0 | H67: =+IF(J1<B68,E67,0) -> 0 | J67: https://yukon.ca/sites/yukon.ca/files/jus-pgt-book-3-what-is-probate.pdf
B68: =+C67+0.01 -> 25,000.01 | E68: 140.00 | H68: =+IF(J1>C67,E68,0) -> 140.00
H69: =SUM(H67:H68) -> 140.00
